Departmental Area,Entity,Payment Date,Expense type,Expense Area,Supplier Name,Payment Reference,    Invoice Distribution Amount    ,Description,Supplier Type,Expenditure Type
UK Statistics Family,Office for National Statistics,01/03/2022,Telecoms,IT Operations,Crown Hosting Data Centres Limited,222451," 2,580.00 ",Information Management Services,SME,Programme Expenditure
UK Statistics Family,Office for National Statistics,01/03/2022,Hosting,IT Operations,Crown Hosting Data Centres Limited,222451," 50,323.27 ",Information Management Services,SME,Programme Expenditure
UK Statistics Family,Office for National Statistics,01/03/2022,End User Software And Hardware,IT Operations,Phoenix Software Ltd,222459," 34,338.00 ",Software Licenses,SME,Programme Expenditure
UK Statistics Family,Office for National Statistics,01/03/2022,Exp - Short-Term Contract & Agency Staff - Full Cost,International Trade And Transactions,Malikshaw Interim & Executive,222477," 5,266.35 ",Information Management Services,SME,Programme Expenditure
UK Statistics Family,Office for National Statistics,01/03/2022,Exp - Short-Term Contract & Agency Staff - Full Cost,Data Architecture,Malikshaw Interim & Executive,222477," 3,037.56 ",Information Management Services,SME,Programme Expenditure
UK Statistics Family,Office for National Statistics,01/03/2022,Exp - Purchase Of Goods/Services - Contractors,Data Architecture,Malikshaw Interim & Executive,222477," 13,104.00 ",Information Management Services,SME,Programme Expenditure
UK Statistics Family,Office for National Statistics,01/03/2022,Exp - Purchase Of Goods/Services - Contractors,Digital Delivery,Malikshaw Interim & Executive,222477," 15,552.00 ",Information Management Services,SME,Programme Expenditure
UK Statistics Family,Office for National Statistics,01/03/2022,Exp - Purchase Of Goods/Services - Contractors,Data Science Campus,Malikshaw Interim & Executive,222477," 27,744.00 ",Information Management Services,SME,Programme Expenditure
UK Statistics Family,Office for National Statistics,01/03/2022,Exp - Purchase Of Goods/Services - Contractors,Social Surveys Division,Malikshaw Interim & Executive,222477," 8,613.60 ",Information Management Services,SME,Programme Expenditure
UK Statistics Family,Office for National Statistics,01/03/2022,Exp - Purchase Of Goods/Services - Contractors,Consultancy Management,LA FOSSE ASSOCIATES LIMITED,222486," 10,890.00 ",Information Management Services,Large,Programme Expenditure
UK Statistics Family,Office for National Statistics,01/03/2022,Exp - Purchase Of Goods/Services - Contractors,Digital Publishing,LA FOSSE ASSOCIATES LIMITED,222486," 1,305.00 ",Information Management Services,Large,Programme Expenditure
UK Statistics Family,Office for National Statistics,01/03/2022,Exp - Purchase Of Goods/Services - Contractors,Digital Publishing,LA FOSSE ASSOCIATES LIMITED,222486," 29,640.00 ",Information Management Services,Large,Programme Expenditure
UK Statistics Family,Office for National Statistics,01/03/2022,Exp - Purchase Of Goods/Services - Contractors,CLOUD ARCHITECTURE,LA FOSSE ASSOCIATES LIMITED,222486," 11,700.00 ",Information Management Services,Large,Programme Expenditure
UK Statistics Family,Office for National Statistics,02/03/2022,End User Software And Hardware,IT Operations,Phoenix Software Ltd,222520," 29,064.77 ",Software Licenses,SME,Programme Expenditure
UK Statistics Family,Office for National Statistics,02/03/2022,Exp - Purchase Of Goods/Services - IT Contractual Services,CLOUD ARCHITECTURE,CTS (Cloud Technology Solutions Ltd),222529," 90,138.00 ",Information Management Services,Large,Programme Expenditure
UK Statistics Family,Office for National Statistics,02/03/2022,Hosting,CDIO UNGP,CTS (Cloud Technology Solutions Ltd),222529," 129,600.00 ",Information Management Services,Large,Programme Expenditure
UK Statistics Family,Office for National Statistics,02/03/2022,Hosting,Tech Delivery Legacy Sp,CTS (Cloud Technology Solutions Ltd),222529," 76,950.00 ",Information Management Services,Large,Programme Expenditure
UK Statistics Family,Office for National Statistics,02/03/2022,Exp - Purchase Of Goods/Services - Incentive Payments,Covid Infection Survey,Sodexo Motivation Solutions U.K. ltd,222536," 68,120.77 ",Survey Response Incentive Vouchers,Large,Programme Expenditure
UK Statistics Family,Office for National Statistics,02/03/2022,Other Goods And Services,Strategy And Engagement,Sodexo Motivation Solutions U.K. ltd,222536, 88.82 ,Survey Response Incentive Vouchers,Large,Programme Expenditure
UK Statistics Family,Office for National Statistics,02/03/2022,Other Goods And Services,Survey Management,Sodexo Motivation Solutions U.K. ltd,222536, 138.17 ,Survey Response Incentive Vouchers,Large,Programme Expenditure
UK Statistics Family,Office for National Statistics,02/03/2022,Exp - Purchase Of Goods/Services - Contractors,Consultancy Management,SmartSourcing Ltd,222537," 7,192.32 ",Information Management Services,SME,Programme Expenditure
UK Statistics Family,Office for National Statistics,02/03/2022,Exp - Short-Term Contract & Agency Staff - Full Cost,Learning And Capability,SmartSourcing Ltd,222537," 5,292.00 ",Information Management Services,SME,Programme Expenditure
UK Statistics Family,Office for National Statistics,02/03/2022,Exp - Purchase Of Goods/Services - Contractors,CDIO UNGP,SmartSourcing Ltd,222537," 3,746.16 ",Information Management Services,SME,Programme Expenditure
UK Statistics Family,Office for National Statistics,02/03/2022,Exp - Purchase Of Goods/Services - Contractors,Tech Delivery Data As A Platform,SmartSourcing Ltd,222537," 3,600.00 ",Information Management Services,SME,Programme Expenditure
UK Statistics Family,Office for National Statistics,02/03/2022,Exp - Purchase Of Goods/Services - Contractors,Tech Delivery Next Gen IT And Infrastructure,SmartSourcing Ltd,222537," 15,195.02 ",Information Management Services,SME,Programme Expenditure
UK Statistics Family,Office for National Statistics,02/03/2022,Exp - Purchase Of Goods/Services - Contractors,IT Operations,SmartSourcing Ltd,222537," 42,255.46 ",Information Management Services,SME,Programme Expenditure
UK Statistics Family,Office for National Statistics,02/03/2022,Exp - Purchase Of Goods/Services - Contractors,Digital Delivery,SmartSourcing Ltd,222537," 13,184.64 ",Information Management Services,SME,Programme Expenditure
UK Statistics Family,Office for National Statistics,02/03/2022,Exp - Purchase Of Goods/Services - Contractors,Data As A Service,SmartSourcing Ltd,222537," 12,599.83 ",Information Management Services,SME,Programme Expenditure
UK Statistics Family,Office for National Statistics,02/03/2022,Exp - Purchase Of Goods/Services - Contractors,Data As A Service,SmartSourcing Ltd,222537, 899.99 ,Information Management Services,SME,Programme Expenditure
UK Statistics Family,Office for National Statistics,02/03/2022,Exp - Permanent UK Staff - PRP Voucher Payments,ONS Corporate Funds,Edenred (UK Group) Limited,222539," 39,900.00 ",Performance Reward Vouchers,Large,Programme Expenditure
UK Statistics Family,Office for National Statistics,02/03/2022,Exp - Purchase Of Goods/Services - Contractors,Testing,Parity Resources Limited,222540," 14,697.52 ",Information Management Services,Large,Programme Expenditure
UK Statistics Family,Office for National Statistics,02/03/2022,Exp - Purchase Of Goods/Services - Contractors,Consultancy Management,Parity Resources Limited,222540," 3,600.00 ",Information Management Services,Large,Programme Expenditure
UK Statistics Family,Office for National Statistics,02/03/2022,Exp - Purchase Of Goods/Services - Contractors,Covid Infection Survey,Parity Resources Limited,222540," 5,987.60 ",Information Management Services,Large,Programme Expenditure
UK Statistics Family,Office for National Statistics,02/03/2022,Exp - Purchase Of Goods/Services - Contractors,Data Architecture,Parity Resources Limited,222540," 3,490.20 ",Information Management Services,Large,Programme Expenditure
UK Statistics Family,Office for National Statistics,02/03/2022,Exp - Purchase Of Goods/Services - Contractors,CLOUD ARCHITECTURE,Parity Resources Limited,222540," 6,861.00 ",Information Management Services,Large,Programme Expenditure
UK Statistics Family,Office for National Statistics,02/03/2022,Exp - Purchase Of Goods/Services - Contractors,Strategy And Architecture,Parity Resources Limited,222540," 8,421.00 ",Information Management Services,Large,Programme Expenditure
UK Statistics Family,Office for National Statistics,02/03/2022,Exp - Purchase Of Goods/Services - Contractors,Tech Delivery Legacy Sp,Parity Resources Limited,222540," 9,201.00 ",Information Management Services,Large,Programme Expenditure
UK Statistics Family,Office for National Statistics,02/03/2022,Exp - Purchase Of Goods/Services - Contractors,IT Applications,Parity Resources Limited,222540," 25,934.04 ",Information Management Services,Large,Programme Expenditure
UK Statistics Family,Office for National Statistics,02/03/2022,Exp - Purchase Of Goods/Services - Contractors,IT Operations,Parity Resources Limited,222540," 34,553.22 ",Information Management Services,Large,Programme Expenditure
UK Statistics Family,Office for National Statistics,02/03/2022,Exp - Purchase Of Goods/Services - Contractors,Digital Delivery,Parity Resources Limited,222540," 11,610.00 ",Information Management Services,Large,Programme Expenditure
UK Statistics Family,Office for National Statistics,03/03/2022,End User Software And Hardware,Tech Delivery Next Gen IT And Infrastructure,Scc,222739," 171,199.99 ",Software Licenses,Large,Programme Expenditure
UK Statistics Family,Office for National Statistics,03/03/2022,End User Software And Hardware,IT Operations,Scc,222739," 327,053.83 ",Software Licenses,Large,Programme Expenditure
UK Statistics Family,Office for National Statistics,03/03/2022,Exp - Purchase Of Goods/Services - Contractors,Business Architecture,La International,222742," 8,982.36 ",Information Management Services,SME,Programme Expenditure
UK Statistics Family,Office for National Statistics,03/03/2022,Exp - Purchase Of Goods/Services - Contractors,Digital Publishing,La International,222742," 3,293.40 ",Information Management Services,SME,Programme Expenditure
UK Statistics Family,Office for National Statistics,03/03/2022,Exp - Purchase Of Goods/Services - Contractors,ANALYTICAL ENGAGEMENT AND IMPACT,La International,222742," 10,005.00 ",Information Management Services,SME,Programme Expenditure
UK Statistics Family,Office for National Statistics,03/03/2022,Exp - Purchase Of Goods/Services - Contractors,CLOUD ARCHITECTURE,La International,222742," 4,165.02 ",Information Management Services,SME,Programme Expenditure
UK Statistics Family,Office for National Statistics,03/03/2022,Exp - Purchase Of Goods/Services - Contractors,Digital Delivery,La International,222742," 3,588.30 ",Information Management Services,SME,Programme Expenditure
UK Statistics Family,Office for National Statistics,03/03/2022,Exp - Purchase Of Goods/Services - Contractors,Programme Delivery,Malikshaw Interim & Executive,222748," 7,920.00 ",Information Management Services,SME,Programme Expenditure
UK Statistics Family,Office for National Statistics,03/03/2022,Exp - Purchase Of Goods/Services - Contractors,CLOUD ARCHITECTURE,Malikshaw Interim & Executive,222748," 12,960.00 ",Information Management Services,SME,Programme Expenditure
UK Statistics Family,Office for National Statistics,03/03/2022,Exp - Purchase Of Goods/Services - Contractors,IT Operations,Malikshaw Interim & Executive,222748," 18,672.00 ",Information Management Services,SME,Programme Expenditure
UK Statistics Family,Office for National Statistics,03/03/2022,Exp - Purchase Of Goods/Services - Contractors,IT Operations,Malikshaw Interim & Executive,222748," 17,472.00 ",Information Management Services,SME,Programme Expenditure
UK Statistics Family,Office for National Statistics,03/03/2022,Exp - Purchase Of Goods/Services - Contractors,Digital Delivery,Malikshaw Interim & Executive,222748," 18,672.00 ",Information Management Services,SME,Programme Expenditure
UK Statistics Family,Office for National Statistics,03/03/2022,Fixtures & Fittings At Cost - Additions,Property Newport,Gresham Office Furniture Limited,222749," 130,676.52 ",Office Furniture,SME,Programme Expenditure
UK Statistics Family,Office for National Statistics,03/03/2022,Fixtures & Fittings At Cost - Additions,Property Newport,Gresham Office Furniture Limited,222749," 78,030.35 ",Office Furniture,SME,Programme Expenditure
UK Statistics Family,Office for National Statistics,03/03/2022,Fixtures & Fittings At Cost - Additions,Property Titchfield,Gresham Office Furniture Limited,222749," 111,027.90 ",Office Furniture,SME,Programme Expenditure
UK Statistics Family,Office for National Statistics,03/03/2022,Rent Payable,Property London,Tandem Property Asset Management LLP,222752," 243,432.00 ",Property Rental,Large,Programme Expenditure
UK Statistics Family,Office for National Statistics,03/03/2022,Exp - Purchase Of Goods/Services - IT Contractual Services,Strategy And Architecture,"Nomensa Ltd,",222759," 36,000.00 ",Information Management Services,Large,Programme Expenditure
UK Statistics Family,Office for National Statistics,04/03/2022,Exp - Purchase Of Goods/Services - IT Contractual Services,Digital Publishing,Swirrl It Ltd,222761," 71,640.00 ",Information Management Services,SME,Programme Expenditure
UK Statistics Family,Office for National Statistics,04/03/2022,Exp - Purchase Of Goods/Services - Contractors,Business Architecture,Concept Information Technology Ltd T/A Concept Resourcing,222763," 1,059.75 ",Information Management Services,Large,Programme Expenditure
UK Statistics Family,Office for National Statistics,04/03/2022,Exp - Purchase Of Goods/Services - Contractors,Consultancy Management,Concept Information Technology Ltd T/A Concept Resourcing,222763," 12,181.25 ",Information Management Services,Large,Programme Expenditure
UK Statistics Family,Office for National Statistics,04/03/2022,Exp - Short-Term Contract & Agency Staff - Full Cost,Covid Infection Survey,Concept Information Technology Ltd T/A Concept Resourcing,222763," 1,716.06 ",Information Management Services,Large,Programme Expenditure
UK Statistics Family,Office for National Statistics,04/03/2022,Exp - Short-Term Contract & Agency Staff - Full Cost,Crime Income And Wealth,Concept Information Technology Ltd T/A Concept Resourcing,222763," 5,075.81 ",Information Management Services,Large,Programme Expenditure
UK Statistics Family,Office for National Statistics,04/03/2022,Exp - Short-Term Contract & Agency Staff - Full Cost,Data Architecture,Concept Information Technology Ltd T/A Concept Resourcing,222763," 1,725.02 ",Information Management Services,Large,Programme Expenditure
UK Statistics Family,Office for National Statistics,04/03/2022,Exp - Short-Term Contract & Agency Staff - Full Cost,Data Architecture,Concept Information Technology Ltd T/A Concept Resourcing,222763," 1,097.76 ",Information Management Services,Large,Programme Expenditure
UK Statistics Family,Office for National Statistics,04/03/2022,Exp - Purchase Of Goods/Services - Contractors,CLOUD ARCHITECTURE,Concept Information Technology Ltd T/A Concept Resourcing,222763," 8,550.00 ",Information Management Services,Large,Programme Expenditure
UK Statistics Family,Office for National Statistics,04/03/2022,Exp - Purchase Of Goods/Services - IT Contractual Services,Digital Delivery,Methods Business & Digital Technology Ltd,222783," 51,150.00 ",Information Management Services,Large,Programme Expenditure
UK Statistics Family,Office for National Statistics,04/03/2022,Exp - Purchase Of Goods/Services - Incentive Payments,Covid Infection Survey,Sodexo Motivation Solutions U.K. ltd,222784," 199,389.50 ",Survey Response Incentive Vouchers,Large,Programme Expenditure
UK Statistics Family,Office for National Statistics,04/03/2022,Exp - Purchase Of Goods/Services - Contractors,Business Architecture,LA FOSSE ASSOCIATES LIMITED,222785," 36,660.00 ",Information Management Services,Large,Programme Expenditure
UK Statistics Family,Office for National Statistics,04/03/2022,Exp - Purchase Of Goods/Services - Contractors,Business Architecture,LA FOSSE ASSOCIATES LIMITED,222785," 8,700.00 ",Information Management Services,Large,Programme Expenditure
UK Statistics Family,Office for National Statistics,04/03/2022,Exp - Purchase Of Goods/Services - Contractors,Consultancy Management,LA FOSSE ASSOCIATES LIMITED,222785," 30,131.76 ",Information Management Services,Large,Programme Expenditure
UK Statistics Family,Office for National Statistics,04/03/2022,Exp - Purchase Of Goods/Services - Contractors,Consultancy Management,LA FOSSE ASSOCIATES LIMITED,222785," 15,000.00 ",Information Management Services,Large,Programme Expenditure
UK Statistics Family,Office for National Statistics,04/03/2022,Exp - Purchase Of Goods/Services - Contractors,WIDER SURVEILLANCE STUDIES,LA FOSSE ASSOCIATES LIMITED,222785, 600.00 ,Information Management Services,Large,Programme Expenditure
UK Statistics Family,Office for National Statistics,04/03/2022,Exp - Purchase Of Goods/Services - Contractors,WIDER SURVEILLANCE STUDIES,LA FOSSE ASSOCIATES LIMITED,222785," 10,800.00 ",Information Management Services,Large,Programme Expenditure
UK Statistics Family,Office for National Statistics,04/03/2022,Exp - Purchase Of Goods/Services - Contractors,CLOUD ARCHITECTURE,LA FOSSE ASSOCIATES LIMITED,222785," 18,000.00 ",Information Management Services,Large,Programme Expenditure
UK Statistics Family,Office for National Statistics,04/03/2022,Exp - Purchase Of Goods/Services - Contractors,Tech Delivery Legacy Sp,LA FOSSE ASSOCIATES LIMITED,222785," 13,500.00 ",Information Management Services,Large,Programme Expenditure
UK Statistics Family,Office for National Statistics,04/03/2022,Exp - Short-Term Contract & Agency Staff - Full Cost,Covid Infection Survey,Talent International,222794," 3,625.00 ",Information Management Services,SME,Programme Expenditure
UK Statistics Family,Office for National Statistics,04/03/2022,Exp - Purchase Of Goods/Services - Contractors,Covid Infection Survey,Talent International,222794," 13,000.00 ",Information Management Services,SME,Programme Expenditure
UK Statistics Family,Office for National Statistics,04/03/2022,Exp - Short-Term Contract & Agency Staff - Full Cost,WIDER SURVEILLANCE STUDIES,Talent International,222794," 2,539.13 ",Information Management Services,SME,Programme Expenditure
UK Statistics Family,Office for National Statistics,04/03/2022,Exp - Short-Term Contract & Agency Staff - Full Cost,Strategy And Engagement,Talent International,222794," 11,239.23 ",Information Management Services,SME,Programme Expenditure
UK Statistics Family,Office for National Statistics,04/03/2022,Exp - Short-Term Contract & Agency Staff - Full Cost,Best Practice And Impact,Talent International,222794," 1,801.16 ",Information Management Services,SME,Programme Expenditure
UK Statistics Family,Office for National Statistics,04/03/2022,Exp - Short-Term Contract & Agency Staff - Full Cost,Data Architecture,Talent International,222794," 5,212.26 ",Information Management Services,SME,Programme Expenditure
UK Statistics Family,Office for National Statistics,04/03/2022,Exp - Short-Term Contract & Agency Staff - Full Cost,Data Architecture,Talent International,222794, 160.20 ,Information Management Services,SME,Programme Expenditure
UK Statistics Family,Office for National Statistics,04/03/2022,Exp - Purchase Of Goods/Services - Contractors,CLOUD ARCHITECTURE,Talent International,222794," 15,600.00 ",Information Management Services,SME,Programme Expenditure
UK Statistics Family,Office for National Statistics,04/03/2022,Exp - Purchase Of Goods/Services - Contractors,IT Operations,Talent International,222794," 28,800.00 ",Information Management Services,SME,Programme Expenditure
UK Statistics Family,Office for National Statistics,04/03/2022,Exp - Purchase Of Goods/Services - Contractors,PPP Operations,Talent International,222794," 15,300.00 ",Information Management Services,SME,Programme Expenditure
UK Statistics Family,Office for National Statistics,07/03/2022,Surveys,Crime Income And Wealth,Natcen Social Research,222947," 52,018.80 ",Statistical Services,Large,Programme Expenditure
UK Statistics Family,Office for National Statistics,07/03/2022,Exp - Short-Term Contract & Agency Staff - Full Cost,Covid Infection Survey,Concept Information Technology Ltd T/A Concept Resourcing,222949," 3,371.84 ",Information Management Services,Large,Programme Expenditure
UK Statistics Family,Office for National Statistics,07/03/2022,Exp - Short-Term Contract & Agency Staff - Full Cost,Covid Infection Survey,Concept Information Technology Ltd T/A Concept Resourcing,222949," 3,223.41 ",Information Management Services,Large,Programme Expenditure
UK Statistics Family,Office for National Statistics,07/03/2022,Exp - Short-Term Contract & Agency Staff - Full Cost,Strategy And Engagement,Concept Information Technology Ltd T/A Concept Resourcing,222949," 4,452.50 ",Information Management Services,Large,Programme Expenditure
UK Statistics Family,Office for National Statistics,07/03/2022,Exp - Short-Term Contract & Agency Staff - Full Cost,Business Architecture Transformation And Statistical Strategy,Concept Information Technology Ltd T/A Concept Resourcing,222949," 11,052.36 ",Information Management Services,Large,Programme Expenditure
UK Statistics Family,Office for National Statistics,07/03/2022,Exp - Short-Term Contract & Agency Staff - Full Cost,Data Architecture,Concept Information Technology Ltd T/A Concept Resourcing,222949, 784.10 ,Information Management Services,Large,Programme Expenditure
UK Statistics Family,Office for National Statistics,07/03/2022,Exp - Purchase Of Goods/Services - IT Contractual Services,Tech Delivery Legacy Sp,Concept Information Technology Ltd T/A Concept Resourcing,222949," 2,880.00 ",Information Management Services,Large,Programme Expenditure
UK Statistics Family,Office for National Statistics,07/03/2022,Exp - Short-Term Contract & Agency Staff - Full Cost,Public Sector And Households,Concept Information Technology Ltd T/A Concept Resourcing,222949," 4,118.54 ",Information Management Services,Large,Programme Expenditure
UK Statistics Family,Office for National Statistics,07/03/2022,Exp - Short-Term Contract & Agency Staff - Full Cost,Data As A Service,Concept Information Technology Ltd T/A Concept Resourcing,222949," 1,669.68 ",Information Management Services,Large,Programme Expenditure
UK Statistics Family,Office for National Statistics,07/03/2022,Exp - Short-Term Contract & Agency Staff - Full Cost,Prices Division,Concept Information Technology Ltd T/A Concept Resourcing,222949," 1,647.42 ",Information Management Services,Large,Programme Expenditure
UK Statistics Family,Office for National Statistics,07/03/2022,Exp - Short-Term Contract & Agency Staff - Full Cost,Prices Division,Concept Information Technology Ltd T/A Concept Resourcing,222949," 3,790.18 ",Information Management Services,Large,Programme Expenditure
UK Statistics Family,Office for National Statistics,07/03/2022,Exp - Short-Term Contract & Agency Staff - Full Cost,Prices Division,Concept Information Technology Ltd T/A Concept Resourcing,222949, 208.72 ,Information Management Services,Large,Programme Expenditure
UK Statistics Family,Office for National Statistics,07/03/2022,Telecoms,IT Operations,Bt Global Services,222950," 95,831.88 ",Telecommunications,Large,Programme Expenditure
UK Statistics Family,Office for National Statistics,07/03/2022,Exp - Purchase Of Goods/Services - Contractors,2023 CENSUS DATA TRANSFORMATION,La International,222953," 5,431.88 ",Information Management Services,SME,Programme Expenditure
UK Statistics Family,Office for National Statistics,07/03/2022,Exp - Purchase Of Goods/Services - Contractors,Business Architecture,La International,222953," 4,042.07 ",Information Management Services,SME,Programme Expenditure
UK Statistics Family,Office for National Statistics,07/03/2022,Exp - Purchase Of Goods/Services - Contractors,Testing,La International,222953," 20,796.00 ",Information Management Services,SME,Programme Expenditure
UK Statistics Family,Office for National Statistics,07/03/2022,Exp - Purchase Of Goods/Services - Contractors,Testing,La International,222953," 4,194.00 ",Information Management Services,SME,Programme Expenditure
UK Statistics Family,Office for National Statistics,07/03/2022,Exp - Purchase Of Goods/Services - Contractors,Testing,La International,222953," 7,135.30 ",Information Management Services,SME,Programme Expenditure
UK Statistics Family,Office for National Statistics,07/03/2022,Exp - Purchase Of Goods/Services - Contractors,Consultancy Management,La International,222953," 3,588.30 ",Information Management Services,SME,Programme Expenditure
UK Statistics Family,Office for National Statistics,07/03/2022,Exp - Purchase Of Goods/Services - Contractors,Digital Publishing,La International,222953," 16,409.16 ",Information Management Services,SME,Programme Expenditure
UK Statistics Family,Office for National Statistics,07/03/2022,Exp - Purchase Of Goods/Services - Contractors,STRATEGY SYNTHESIS AND CO-ORDINATION,La International,222953," 3,788.28 ",Information Management Services,SME,Programme Expenditure
UK Statistics Family,Office for National Statistics,07/03/2022,Exp - Purchase Of Goods/Services - Contractors,ANALYTICAL ENGAGEMENT AND IMPACT,La International,222953," 3,450.00 ",Information Management Services,SME,Programme Expenditure
UK Statistics Family,Office for National Statistics,07/03/2022,Exp - Purchase Of Goods/Services - Contractors,CLOUD ARCHITECTURE,La International,222953," 20,504.70 ",Information Management Services,SME,Programme Expenditure
UK Statistics Family,Office for National Statistics,07/03/2022,Exp - Purchase Of Goods/Services - Contractors,Tech Delivery Legacy Sp,La International,222953," 18,482.40 ",Information Management Services,SME,Programme Expenditure
UK Statistics Family,Office for National Statistics,07/03/2022,Exp - Purchase Of Goods/Services - Contractors,Tech Delivery Data As A Platform,La International,222953," 11,943.54 ",Information Management Services,SME,Programme Expenditure
UK Statistics Family,Office for National Statistics,07/03/2022,Exp - Purchase Of Goods/Services - Contractors,Tech Delivery Data As A Platform,La International,222953," 10,749.19 ",Information Management Services,SME,Programme Expenditure
UK Statistics Family,Office for National Statistics,07/03/2022,Exp - Purchase Of Goods/Services - Contractors,IT Applications,La International,222953," 23,131.68 ",Information Management Services,SME,Programme Expenditure
UK Statistics Family,Office for National Statistics,07/03/2022,Exp - Purchase Of Goods/Services - Contractors,IT Operations,La International,222953," 9,642.31 ",Information Management Services,SME,Programme Expenditure
UK Statistics Family,Office for National Statistics,07/03/2022,Exp - Purchase Of Goods/Services - IT Contractual Services,Digital Delivery,Methods Business & Digital Technology Ltd,222961," 26,280.00 ",Information Management Services,Large,Programme Expenditure
UK Statistics Family,Office for National Statistics,07/03/2022,Exp - Purchase Of Goods/Services - Contractors,Consultancy Management,Parity Resources Limited,222964," 2,160.00 ",Information Management Services,Large,Programme Expenditure
UK Statistics Family,Office for National Statistics,07/03/2022,Exp - Purchase Of Goods/Services - Contractors,Analysis Microdata And Engagement,Parity Resources Limited,222964," 4,980.94 ",Information Management Services,Large,Programme Expenditure
UK Statistics Family,Office for National Statistics,07/03/2022,Exp - Purchase Of Goods/Services - Contractors,Security Advisory,Parity Resources Limited,222964," 28,964.16 ",Information Management Services,Large,Programme Expenditure
UK Statistics Family,Office for National Statistics,07/03/2022,Exp - Purchase Of Goods/Services - Contractors,IT Operations,Parity Resources Limited,222964," 10,820.22 ",Information Management Services,Large,Programme Expenditure
UK Statistics Family,Office for National Statistics,08/03/2022,Exp - Purchase Of Goods/Services - IT Contractual Services,Tech Delivery Legacy Sp,Concept Information Technology Ltd T/A Concept Resourcing,223063," 12,948.48 ",Information Management Services,Large,Programme Expenditure
UK Statistics Family,Office for National Statistics,08/03/2022,Exp - Purchase Of Goods/Services - Contractors,Social Survey Transformation Titchfield,Concept Information Technology Ltd T/A Concept Resourcing,223063," 10,742.40 ",Information Management Services,Large,Programme Expenditure
UK Statistics Family,Office for National Statistics,08/03/2022,Exp - Short-Term Contract & Agency Staff - Full Cost,Corporations,Concept Information Technology Ltd T/A Concept Resourcing,223063," 2,352.31 ",Information Management Services,Large,Programme Expenditure
UK Statistics Family,Office for National Statistics,08/03/2022,Exp - Short-Term Contract & Agency Staff - Full Cost,Labour Market,Concept Information Technology Ltd T/A Concept Resourcing,223063," 4,118.54 ",Information Management Services,Large,Programme Expenditure
UK Statistics Family,Office for National Statistics,08/03/2022,Exp - Short-Term Contract & Agency Staff - Full Cost,Labour Market,Concept Information Technology Ltd T/A Concept Resourcing,223063," 3,990.09 ",Information Management Services,Large,Programme Expenditure
UK Statistics Family,Office for National Statistics,08/03/2022,Print & Post,Social Survey Transformation Newport,APS Group,223070," 87,525.58 ",Print and Post Services,Large,Programme Expenditure
UK Statistics Family,Office for National Statistics,08/03/2022,Print & Post,Social Surveys Division,APS Group,223070," 6,665.29 ",Print and Post Services,Large,Programme Expenditure
UK Statistics Family,Office for National Statistics,08/03/2022,Exp - Purchase Of Goods And Services Consultants,Security Advisory,Bridewell Consulting Limited,223078," 68,400.00 ",Consultancy,SME,Programme Expenditure
UK Statistics Family,Office for National Statistics,08/03/2022,Other Goods And Services,WIDER SURVEILLANCE STUDIES,Family & Education / iChild,223083," 46,390.80 ",Consultancy,SME,Programme Expenditure
UK Statistics Family,Office for National Statistics,08/03/2022,End User Software And Hardware,Security And Information Management Saim,Insight Direct,223084," 83,926.03 ",Software Licenses,Large,Programme Expenditure
UK Statistics Family,Office for National Statistics,08/03/2022,Exp - Short-Term Contract & Agency Staff - Full Cost,STRATEGY SYNTHESIS AND CO-ORDINATION,Talent International,223086," 10,758.96 ",Information Management Services,SME,Programme Expenditure
UK Statistics Family,Office for National Statistics,08/03/2022,Exp - Short-Term Contract & Agency Staff - Full Cost,STRATEGY SYNTHESIS AND CO-ORDINATION,Talent International,223086," 5,162.83 ",Information Management Services,SME,Programme Expenditure
UK Statistics Family,Office for National Statistics,08/03/2022,Exp - Short-Term Contract & Agency Staff - Full Cost,Census & Soc Methodology Dd,Talent International,223086," 5,434.56 ",Information Management Services,SME,Programme Expenditure
UK Statistics Family,Office for National Statistics,08/03/2022,Exp - Purchase Of Goods/Services - Contractors,CLOUD ARCHITECTURE,Talent International,223086," 17,976.00 ",Information Management Services,SME,Programme Expenditure
UK Statistics Family,Office for National Statistics,08/03/2022,Exp - Purchase Of Goods/Services - Contractors,Strategy And Architecture,Talent International,223086," 16,800.00 ",Information Management Services,SME,Programme Expenditure
UK Statistics Family,Office for National Statistics,08/03/2022,Exp - Purchase Of Goods/Services - Contractors,Tech Delivery Next Gen IT And Infrastructure,Talent International,223086," 3,000.00 ",Information Management Services,SME,Programme Expenditure
UK Statistics Family,Office for National Statistics,08/03/2022,Exp - Purchase Of Goods/Services - Contractors,IT Applications,Talent International,223086," 15,600.00 ",Information Management Services,SME,Programme Expenditure
UK Statistics Family,Office for National Statistics,09/03/2022,Surveys,Prices Division,Kantar Public UK Ltd.,223091," 218,353.80 ",Statistical Services,SME,Programme Expenditure
UK Statistics Family,Office for National Statistics,09/03/2022,Buildings Under Construction,Property Newport,Vinci Construction UK Limited,223094," 282,102.00 ",Facilities Mangement Services,Large,Programme Expenditure
UK Statistics Family,Office for National Statistics,09/03/2022,Buildings Under Construction,Property Newport,Vinci Construction UK Limited,223094," 148,795.85 ",Facilities Mangement Services,Large,Programme Expenditure
UK Statistics Family,Office for National Statistics,09/03/2022,Buildings Under Construction,Property Newport,Vinci Construction UK Limited,223094," 11,235.05 ",Facilities Mangement Services,Large,Programme Expenditure
UK Statistics Family,Office for National Statistics,09/03/2022,Buildings Under Construction,Property Newport,Vinci Construction UK Limited,223094," 16,861.86 ",Facilities Mangement Services,Large,Programme Expenditure
UK Statistics Family,Office for National Statistics,09/03/2022,Major Works Over 25K,Property Newport,Vinci Construction UK Limited,223094," 138,914.40 ",Facilities Mangement Services,Large,Programme Expenditure
UK Statistics Family,Office for National Statistics,09/03/2022,Major Works Over 25K,Property Titchfield,Vinci Construction UK Limited,223094," 96,750.00 ",Facilities Mangement Services,Large,Programme Expenditure
UK Statistics Family,Office for National Statistics,09/03/2022,Buildings Under Construction,Property Christchurch,Vinci Construction UK Limited,223094," 179,052.00 ",Facilities Mangement Services,Large,Programme Expenditure
UK Statistics Family,Office for National Statistics,09/03/2022,Exp - Short-Term Contract & Agency Staff - Full Cost,Covid Infection Survey,Concept Information Technology Ltd T/A Concept Resourcing,223095," 2,010.33 ",Information Management Services,Large,Programme Expenditure
UK Statistics Family,Office for National Statistics,09/03/2022,Exp - Short-Term Contract & Agency Staff - Full Cost,Covid Infection Survey,Concept Information Technology Ltd T/A Concept Resourcing,223095," 2,991.51 ",Information Management Services,Large,Programme Expenditure
UK Statistics Family,Office for National Statistics,09/03/2022,Exp - Short-Term Contract & Agency Staff - Full Cost,Covid Infection Survey,Concept Information Technology Ltd T/A Concept Resourcing,223095," 4,229.84 ",Information Management Services,Large,Programme Expenditure
UK Statistics Family,Office for National Statistics,09/03/2022,Exp - Short-Term Contract & Agency Staff - Full Cost,WIDER SURVEILLANCE STUDIES,Concept Information Technology Ltd T/A Concept Resourcing,223095," 2,093.26 ",Information Management Services,Large,Programme Expenditure
UK Statistics Family,Office for National Statistics,09/03/2022,Exp - Short-Term Contract & Agency Staff - Full Cost,Business Change Support,Concept Information Technology Ltd T/A Concept Resourcing,223095," 4,118.54 ",Information Management Services,Large,Programme Expenditure
UK Statistics Family,Office for National Statistics,09/03/2022,Exp - Short-Term Contract & Agency Staff - Full Cost,Business Change Support,Concept Information Technology Ltd T/A Concept Resourcing,223095," 1,260.92 ",Information Management Services,Large,Programme Expenditure
UK Statistics Family,Office for National Statistics,09/03/2022,Exp - Short-Term Contract & Agency Staff - Full Cost,Business Change Support,Concept Information Technology Ltd T/A Concept Resourcing,223095," 5,816.05 ",Information Management Services,Large,Programme Expenditure
UK Statistics Family,Office for National Statistics,09/03/2022,Exp - Short-Term Contract & Agency Staff - Full Cost,Business Change Support,Concept Information Technology Ltd T/A Concept Resourcing,223095," 3,088.91 ",Information Management Services,Large,Programme Expenditure
UK Statistics Family,Office for National Statistics,09/03/2022,Exp - Short-Term Contract & Agency Staff - Full Cost,Business Change Support,Concept Information Technology Ltd T/A Concept Resourcing,223095," 4,118.54 ",Information Management Services,Large,Programme Expenditure
UK Statistics Family,Office for National Statistics,09/03/2022,Exp - Short-Term Contract & Agency Staff - Full Cost,Business Change Support,Concept Information Technology Ltd T/A Concept Resourcing,223095," 3,088.91 ",Information Management Services,Large,Programme Expenditure
UK Statistics Family,Office for National Statistics,09/03/2022,Exp - Short-Term Contract & Agency Staff - Full Cost,Business Change Support,Concept Information Technology Ltd T/A Concept Resourcing,223095," 4,630.45 ",Information Management Services,Large,Programme Expenditure
UK Statistics Family,Office for National Statistics,09/03/2022,Exp - Short-Term Contract & Agency Staff - Full Cost,Business Change Support,Concept Information Technology Ltd T/A Concept Resourcing,223095," 10,548.20 ",Information Management Services,Large,Programme Expenditure
UK Statistics Family,Office for National Statistics,09/03/2022,Exp - Short-Term Contract & Agency Staff - Full Cost,Business Architecture Transformation And Statistical Strategy,Concept Information Technology Ltd T/A Concept Resourcing,223095," 5,431.10 ",Information Management Services,Large,Programme Expenditure
UK Statistics Family,Office for National Statistics,09/03/2022,Exp - Purchase Of Goods/Services - Contractors,Census & Soc Methodology Dd,Concept Information Technology Ltd T/A Concept Resourcing,223095," 22,298.83 ",Information Management Services,Large,Programme Expenditure
UK Statistics Family,Office for National Statistics,09/03/2022,Exp - Short-Term Contract & Agency Staff - Full Cost,Public Sector And Households,Concept Information Technology Ltd T/A Concept Resourcing,223095," 2,352.31 ",Information Management Services,Large,Programme Expenditure
UK Statistics Family,Office for National Statistics,09/03/2022,Exp - Short-Term Contract & Agency Staff - Full Cost,Public Sector And Households,Concept Information Technology Ltd T/A Concept Resourcing,223095," 8,237.08 ",Information Management Services,Large,Programme Expenditure
UK Statistics Family,Office for National Statistics,09/03/2022,Exp - Short-Term Contract & Agency Staff - Full Cost,Business Statistics Transformation,Concept Information Technology Ltd T/A Concept Resourcing,223095," 9,458.92 ",Information Management Services,Large,Programme Expenditure
UK Statistics Family,Office for National Statistics,09/03/2022,Exp - Short-Term Contract & Agency Staff - Full Cost,Social Surveys Division,Concept Information Technology Ltd T/A Concept Resourcing,223095," 5,765.97 ",Information Management Services,Large,Programme Expenditure
UK Statistics Family,Office for National Statistics,09/03/2022,Exp - Short-Term Contract & Agency Staff - Full Cost,Prices Division,Concept Information Technology Ltd T/A Concept Resourcing,223095," 5,770.93 ",Information Management Services,Large,Programme Expenditure
UK Statistics Family,Office for National Statistics,09/03/2022,Exp - Short-Term Contract & Agency Staff - Full Cost,Prices Division,Concept Information Technology Ltd T/A Concept Resourcing,223095," 4,118.54 ",Information Management Services,Large,Programme Expenditure
UK Statistics Family,Office for National Statistics,09/03/2022,Exp - Short-Term Contract & Agency Staff - Full Cost,Prices Division,Concept Information Technology Ltd T/A Concept Resourcing,223095," 22,100.98 ",Information Management Services,Large,Programme Expenditure
UK Statistics Family,Office for National Statistics,09/03/2022,Exp - Short-Term Contract & Agency Staff - Full Cost,Business Outputs And Developments,Concept Information Technology Ltd T/A Concept Resourcing,223095," 3,809.65 ",Information Management Services,Large,Programme Expenditure
UK Statistics Family,Office for National Statistics,09/03/2022,Exp - Purchase Of Goods/Services - IT Contractual Services,Digital Publishing,University of Durham,223096," 343,488.00 ",Statistical Services,Large,Programme Expenditure
UK Statistics Family,Office for National Statistics,09/03/2022,Travel And Subsistence,Corporate Centre,Corporate Travel Management ,223099," 56,259.31 ",Travel and Accommodation,SME,Programme Expenditure
UK Statistics Family,Office for National Statistics,09/03/2022,Exp - Purchase Of Goods/Services - IT Contractual Services,IT Applications,Diegesis Limited,223117," 184,650.00 ",Information Management Services,Large,Programme Expenditure
UK Statistics Family,Office for National Statistics,09/03/2022,Exp - Purchase Of Goods/Services - Contractors,Digital Publishing,LA FOSSE ASSOCIATES LIMITED,223118," 24,840.00 ",Information Management Services,Large,Programme Expenditure
UK Statistics Family,Office for National Statistics,09/03/2022,Exp - Purchase Of Goods/Services - Contractors,BUSINESS STRATEGY PERFORMANCE AND PMO,LA FOSSE ASSOCIATES LIMITED,223118," 33,540.00 ",Information Management Services,Large,Programme Expenditure
UK Statistics Family,Office for National Statistics,09/03/2022,Exp - Purchase Of Goods/Services - Contractors,Strategy And Architecture,LA FOSSE ASSOCIATES LIMITED,223118," 21,000.00 ",Information Management Services,Large,Programme Expenditure
UK Statistics Family,Office for National Statistics,09/03/2022,Exp - Purchase Of Goods/Services - Contractors,Tech Delivery Legacy Sp,LA FOSSE ASSOCIATES LIMITED,223118," 16,200.00 ",Information Management Services,Large,Programme Expenditure
UK Statistics Family,Office for National Statistics,09/03/2022,Exp - Purchase Of Goods/Services - IT Contractual Services,Digital Delivery,Armakuni Ltd,223119," 46,860.00 ",Information Management Services,SME,Programme Expenditure
UK Statistics Family,Office for National Statistics,09/03/2022,Exp - Purchase Of Goods/Services - Contractors,Business Architecture,Talent International,223123," 16,380.00 ",Information Management Services,SME,Programme Expenditure
UK Statistics Family,Office for National Statistics,09/03/2022,Exp - Purchase Of Goods/Services - Contractors,Consultancy Management,Talent International,223123," 18,000.00 ",Information Management Services,SME,Programme Expenditure
UK Statistics Family,Office for National Statistics,09/03/2022,Exp - Purchase Of Goods/Services - Contractors,INTEGRATED DATA STRATEGY AND DELIVERY,Talent International,223123," 13,800.00 ",Information Management Services,SME,Programme Expenditure
UK Statistics Family,Office for National Statistics,09/03/2022,Exp - Purchase Of Goods/Services - Contractors,Strategy And Architecture,Talent International,223123," 15,300.00 ",Information Management Services,SME,Programme Expenditure
UK Statistics Family,Office for National Statistics,09/03/2022,Exp - Purchase Of Goods/Services - Contractors,Tech Delivery Legacy Sp,Talent International,223123," 33,817.20 ",Information Management Services,SME,Programme Expenditure
UK Statistics Family,Office for National Statistics,09/03/2022,Exp - Purchase Of Goods/Services - Contractors,Tech Delivery Next Gen IT And Infrastructure,Talent International,223123," 8,999.86 ",Information Management Services,SME,Programme Expenditure
UK Statistics Family,Office for National Statistics,09/03/2022,Exp - Purchase Of Goods/Services - Contractors,IT Operations,Talent International,223123," 16,178.40 ",Information Management Services,SME,Programme Expenditure
UK Statistics Family,Office for National Statistics,09/03/2022,Exp - Purchase Of Goods/Services - Contractors,Digital Delivery,Talent International,223123," 12,096.00 ",Information Management Services,SME,Programme Expenditure
UK Statistics Family,Office for National Statistics,10/03/2022,FM Contract Payments,Property London,Tandem Property Asset Management LLP,223363," 55,008.00 ",Property Rental,Large,Programme Expenditure
UK Statistics Family,Office for National Statistics,10/03/2022,Telecoms,Covid Infection Survey,Vodafone Corporate Ltd,223364," 18,228.00 ",Telecommunications,Large,Programme Expenditure
UK Statistics Family,Office for National Statistics,10/03/2022,Telecoms,Interviewer Management FiF,Vodafone Corporate Ltd,223364," 9,580.93 ",Telecommunications,Large,Programme Expenditure
UK Statistics Family,Office for National Statistics,10/03/2022,Telecoms,Interview Management IPS,Vodafone Corporate Ltd,223364," 2,548.21 ",Telecommunications,Large,Programme Expenditure
UK Statistics Family,Office for National Statistics,10/03/2022,"ICT Outsourcing, Maintenance And Support",Covid Infection Survey,Equiniti Limited,223371," 14,549.86 ",Information Management Services,Large,Programme Expenditure
UK Statistics Family,Office for National Statistics,10/03/2022,"ICT Outsourcing, Maintenance And Support",Researcher Support And Data Access ,Equiniti Limited,223371," 154,767.37 ",Information Management Services,Large,Programme Expenditure
UK Statistics Family,Office for National Statistics,10/03/2022,Hosting,IT Operations,Equiniti Limited,223371," 51,041.75 ",Information Management Services,Large,Programme Expenditure
UK Statistics Family,Office for National Statistics,10/03/2022,Exp - Purchase Of Goods/Services - Contractors,Data Architecture,Certes Computing Ltd,223372," 5,604.40 ",Information Management Services,SME,Programme Expenditure
UK Statistics Family,Office for National Statistics,10/03/2022,Exp - Purchase Of Goods/Services - Contractors,Strategy And Architecture,Certes Computing Ltd,223372," 1,896.00 ",Information Management Services,SME,Programme Expenditure
UK Statistics Family,Office for National Statistics,10/03/2022,Exp - Purchase Of Goods/Services - Contractors,Tech Delivery Legacy Sp,Certes Computing Ltd,223372," 8,400.00 ",Information Management Services,SME,Programme Expenditure
UK Statistics Family,Office for National Statistics,10/03/2022,Exp - Purchase Of Goods/Services - Contractors,Digital Delivery,Certes Computing Ltd,223372," 11,977.45 ",Information Management Services,SME,Programme Expenditure
UK Statistics Family,Office for National Statistics,10/03/2022,Specialist User Software And Hardware,Testing,Bytes Software Services Ltd,223373," 33,256.04 ",Software Licenses,Large,Programme Expenditure
UK Statistics Family,Office for National Statistics,10/03/2022,Stationery,Lodgecard,Royal Bank of Scotland,223374," 1,110.86 ",Multiple Procurement Card Purchases  - Stationery ,Large,Programme Expenditure
UK Statistics Family,Office for National Statistics,10/03/2022,Other Goods And Services,GPC,Royal Bank of Scotland,223374," 75,363.06 ",Multiple Procurement Card Purchases - other goods/services  ,Large,Programme Expenditure
UK Statistics Family,Office for National Statistics,10/03/2022,Travel And Subsistence,Car Hire,Royal Bank of Scotland,223374," 3,453.85 ",Multiple Procurement Card Purchases - Vehicle Hire  ,Large,Programme Expenditure
UK Statistics Family,Office for National Statistics,10/03/2022,Hospitality,Property Services,BaxterStorey,223378," 31,866.19 ",Catering Services,Large,Programme Expenditure
UK Statistics Family,Office for National Statistics,10/03/2022,Exp - Short-Term Contract & Agency Staff - Full Cost,Finance,Malikshaw Interim & Executive,223379," 5,532.20 ",Information Management Services,SME,Programme Expenditure
UK Statistics Family,Office for National Statistics,10/03/2022,Exp - Purchase Of Goods/Services - Contractors,Data Architecture,Malikshaw Interim & Executive,223379," 14,400.00 ",Information Management Services,SME,Programme Expenditure
UK Statistics Family,Office for National Statistics,10/03/2022,Exp - Purchase Of Goods/Services - Contractors,Data Architecture,Malikshaw Interim & Executive,223379," 34,944.00 ",Information Management Services,SME,Programme Expenditure
UK Statistics Family,Office for National Statistics,10/03/2022,Exp - Purchase Of Goods/Services - Contractors,Data As A Service,Malikshaw Interim & Executive,223379," 16,716.60 ",Information Management Services,SME,Programme Expenditure
UK Statistics Family,Office for National Statistics,10/03/2022,Exp - Purchase Of Goods/Services - Incentive Payments,Covid Infection Survey,Sodexo Motivation Solutions U.K. ltd,223382," 75,522.52 ",Survey Response Incentive Vouchers,Large,Programme Expenditure
UK Statistics Family,Office for National Statistics,10/03/2022,Exp - Permanent UK Staff - PRP Voucher Payments,ONS Corporate Funds,Edenred (UK Group) Limited,223385," 40,900.00 ",Performance Reward Vouchers,Large,Programme Expenditure
UK Statistics Family,Office for National Statistics,10/03/2022,Exp - Purchase Of Goods/Services - Contractors,Testing,Parity Resources Limited,223387," 9,000.00 ",Information Management Services,Large,Programme Expenditure
UK Statistics Family,Office for National Statistics,10/03/2022,Exp - Purchase Of Goods/Services - Contractors,CLOUD ARCHITECTURE,Parity Resources Limited,223387," 3,430.50 ",Information Management Services,Large,Programme Expenditure
UK Statistics Family,Office for National Statistics,10/03/2022,Exp - Purchase Of Goods/Services - Contractors,IT Applications,Parity Resources Limited,223387," 4,713.30 ",Information Management Services,Large,Programme Expenditure
UK Statistics Family,Office for National Statistics,10/03/2022,Exp - Purchase Of Goods/Services - Contractors,IT Operations,Parity Resources Limited,223387," 12,986.52 ",Information Management Services,Large,Programme Expenditure
UK Statistics Family,Office for National Statistics,10/03/2022,Exp - Purchase Of Goods/Services - Contractors,Data Architecture,Talent International,223389, 840.00 ,Information Management Services,SME,Programme Expenditure
UK Statistics Family,Office for National Statistics,10/03/2022,Exp - Purchase Of Goods/Services - Contractors,Data Architecture,Talent International,223389," 47,399.76 ",Information Management Services,SME,Programme Expenditure
UK Statistics Family,Office for National Statistics,10/03/2022,Exp - Purchase Of Goods/Services - Contractors,IT Operations,Talent International,223389," 15,600.00 ",Information Management Services,SME,Programme Expenditure
UK Statistics Family,Office for National Statistics,10/03/2022,Exp - Purchase Of Goods/Services - Contractors,Data As A Service,Talent International,223389," 13,500.00 ",Information Management Services,SME,Programme Expenditure
UK Statistics Family,Office for National Statistics,11/03/2022,Exp - Short-Term Contract & Agency Staff - Full Cost,International Trade And Transactions,Concept Information Technology Ltd T/A Concept Resourcing,223394," 3,088.91 ",Information Management Services,Large,Programme Expenditure
UK Statistics Family,Office for National Statistics,11/03/2022,Exp - Short-Term Contract & Agency Staff - Full Cost,International Trade And Transactions,Concept Information Technology Ltd T/A Concept Resourcing,223394," 2,352.31 ",Information Management Services,Large,Programme Expenditure
UK Statistics Family,Office for National Statistics,11/03/2022,Exp - Short-Term Contract & Agency Staff - Full Cost,International Trade And Transactions,Concept Information Technology Ltd T/A Concept Resourcing,223394," 28,678.86 ",Information Management Services,Large,Programme Expenditure
UK Statistics Family,Office for National Statistics,11/03/2022,Exp - Short-Term Contract & Agency Staff - Full Cost,Productivity Research And Professional Development,Concept Information Technology Ltd T/A Concept Resourcing,223394," 3,136.42 ",Information Management Services,Large,Programme Expenditure
UK Statistics Family,Office for National Statistics,11/03/2022,Exp - Short-Term Contract & Agency Staff - Full Cost,Productivity Research And Professional Development,Concept Information Technology Ltd T/A Concept Resourcing,223394," 3,806.86 ",Information Management Services,Large,Programme Expenditure
UK Statistics Family,Office for National Statistics,11/03/2022,Exp - Short-Term Contract & Agency Staff - Full Cost,Productivity Research And Professional Development,Concept Information Technology Ltd T/A Concept Resourcing,223394," 2,352.31 ",Information Management Services,Large,Programme Expenditure
UK Statistics Family,Office for National Statistics,11/03/2022,Exp - Purchase Of Goods And Services Consultants,Productivity Research And Professional Development,Concept Information Technology Ltd T/A Concept Resourcing,223394," 3,088.91 ",Information Management Services,Large,Programme Expenditure
UK Statistics Family,Office for National Statistics,11/03/2022,Exp - Purchase Of Goods And Services Consultants,Productivity Research And Professional Development,Concept Information Technology Ltd T/A Concept Resourcing,223394," 1,029.64 ",Information Management Services,Large,Programme Expenditure
UK Statistics Family,Office for National Statistics,11/03/2022,Exp - Purchase Of Goods And Services Consultants,Productivity Research And Professional Development,Concept Information Technology Ltd T/A Concept Resourcing,223394," 3,088.91 ",Information Management Services,Large,Programme Expenditure
UK Statistics Family,Office for National Statistics,11/03/2022,Exp - Purchase Of Goods And Services Consultants,Productivity Research And Professional Development,Concept Information Technology Ltd T/A Concept Resourcing,223394," 2,352.31 ",Information Management Services,Large,Programme Expenditure
UK Statistics Family,Office for National Statistics,11/03/2022,Exp - Short-Term Contract & Agency Staff - Full Cost,Business Architecture Transformation And Statistical Strategy,Concept Information Technology Ltd T/A Concept Resourcing,223394," 3,436.78 ",Information Management Services,Large,Programme Expenditure
UK Statistics Family,Office for National Statistics,11/03/2022,Exp - Purchase Of Goods/Services - Contractors,2023 CENSUS DATA TRANSFORMATION,La International,223397," 4,668.35 ",Information Management Services,SME,Programme Expenditure
UK Statistics Family,Office for National Statistics,11/03/2022,Exp - Purchase Of Goods/Services - Contractors,Business Architecture,La International,223397," 3,592.94 ",Information Management Services,SME,Programme Expenditure
UK Statistics Family,Office for National Statistics,11/03/2022,Exp - Purchase Of Goods/Services - Contractors,Business Architecture,La International,223397, 898.24 ,Information Management Services,SME,Programme Expenditure
UK Statistics Family,Office for National Statistics,11/03/2022,Exp - Purchase Of Goods/Services - Contractors,Testing,La International,223397," 21,633.78 ",Information Management Services,SME,Programme Expenditure
UK Statistics Family,Office for National Statistics,11/03/2022,Exp - Purchase Of Goods/Services - Contractors,Testing,La International,223397," 3,317.65 ",Information Management Services,SME,Programme Expenditure
UK Statistics Family,Office for National Statistics,11/03/2022,Exp - Purchase Of Goods/Services - Contractors,Consultancy Management,La International,223397," 2,870.64 ",Information Management Services,SME,Programme Expenditure
UK Statistics Family,Office for National Statistics,11/03/2022,Exp - Purchase Of Goods/Services - Contractors,Consultancy Management,La International,223397, 717.66 ,Information Management Services,SME,Programme Expenditure
UK Statistics Family,Office for National Statistics,11/03/2022,Exp - Purchase Of Goods/Services - Contractors,STRATEGY SYNTHESIS AND CO-ORDINATION,La International,223397," 2,525.52 ",Information Management Services,SME,Programme Expenditure
UK Statistics Family,Office for National Statistics,11/03/2022,Exp - Purchase Of Goods/Services - Contractors,Data Architecture,La International,223397," 7,963.56 ",Information Management Services,SME,Programme Expenditure
UK Statistics Family,Office for National Statistics,11/03/2022,Exp - Purchase Of Goods/Services - Contractors,Tech Delivery Legacy Sp,La International,223397," 14,103.54 ",Information Management Services,SME,Programme Expenditure
UK Statistics Family,Office for National Statistics,11/03/2022,Exp - Purchase Of Goods/Services - Contractors,Tech Delivery Data As A Platform,La International,223397," 12,495.06 ",Information Management Services,SME,Programme Expenditure
UK Statistics Family,Office for National Statistics,11/03/2022,Exp - Purchase Of Goods/Services - Contractors,IT Applications,La International,223397," 7,464.66 ",Information Management Services,SME,Programme Expenditure
UK Statistics Family,Office for National Statistics,11/03/2022,Exp - Purchase Of Goods/Services - Contractors,IT Operations,La International,223397, 868.03 ,Information Management Services,SME,Programme Expenditure
UK Statistics Family,Office for National Statistics,11/03/2022,Other Goods And Services,Productivity Research And Professional Development,The Alan Turing Institute,223402," 65,818.50 ",Collaborative Research,SME,Programme Expenditure
UK Statistics Family,Office for National Statistics,11/03/2022,Exp - Purchase Of Goods/Services - IT Contractual Services,Digital Delivery,Methods Business & Digital Technology Ltd,223404," 47,970.00 ",Information Management Services,Large,Programme Expenditure
UK Statistics Family,Office for National Statistics,11/03/2022,Exp - Short-Term Contract & Agency Staff - Full Cost,Recruitment ,SmartSourcing Ltd,223408, 732.60 ,Information Management Services,SME,Programme Expenditure
UK Statistics Family,Office for National Statistics,11/03/2022,Exp - Purchase Of Goods/Services - Contractors,Data Architecture,SmartSourcing Ltd,223408," 54,190.08 ",Information Management Services,SME,Programme Expenditure
UK Statistics Family,Office for National Statistics,11/03/2022,Exp - Purchase Of Goods/Services - Contractors,Data Architecture,SmartSourcing Ltd,223408," 10,788.48 ",Information Management Services,SME,Programme Expenditure
UK Statistics Family,Office for National Statistics,11/03/2022,Exp - Purchase Of Goods/Services - Contractors,Data As A Service,SmartSourcing Ltd,223408," 4,499.94 ",Information Management Services,SME,Programme Expenditure
UK Statistics Family,Office for National Statistics,11/03/2022,Exp - Purchase Of Goods/Services - Contractors,Data Architecture,LA FOSSE ASSOCIATES LIMITED,223419," 29,160.00 ",Information Management Services,Large,Programme Expenditure
UK Statistics Family,Office for National Statistics,14/03/2022,Exp - Purchase Of Goods/Services - IT Contractual Services,IT Operations,Scc,223520," 33,262.58 ",Software Licenses,Large,Programme Expenditure
UK Statistics Family,Office for National Statistics,14/03/2022,Exp - Purchase Of Goods/Services - Contractors,Business Architecture,Certes Computing Ltd,223522," 16,329.71 ",Information Management Services,SME,Programme Expenditure
UK Statistics Family,Office for National Statistics,14/03/2022,Exp - Purchase Of Goods/Services - Contractors,Testing,Certes Computing Ltd,223522," 13,066.08 ",Information Management Services,SME,Programme Expenditure
UK Statistics Family,Office for National Statistics,14/03/2022,Exp - Purchase Of Goods/Services - Contractors,Consultancy Management,Certes Computing Ltd,223522," 7,965.94 ",Information Management Services,SME,Programme Expenditure
UK Statistics Family,Office for National Statistics,14/03/2022,Exp - Purchase Of Goods/Services - Contractors,Security Advisory,Certes Computing Ltd,223522," 16,653.12 ",Information Management Services,SME,Programme Expenditure
UK Statistics Family,Office for National Statistics,14/03/2022,Exp - Purchase Of Goods/Services - Contractors,Security Advisory,Certes Computing Ltd,223522," 30,808.27 ",Information Management Services,SME,Programme Expenditure
UK Statistics Family,Office for National Statistics,14/03/2022,Exp - Purchase Of Goods/Services - Contractors,Security Advisory,Certes Computing Ltd,223522," 11,448.53 ",Information Management Services,SME,Programme Expenditure
UK Statistics Family,Office for National Statistics,14/03/2022,Exp - Purchase Of Goods/Services - Contractors,Data Architecture,Certes Computing Ltd,223522," 25,559.93 ",Information Management Services,SME,Programme Expenditure
UK Statistics Family,Office for National Statistics,14/03/2022,Exp - Purchase Of Goods/Services - Contractors,Data Architecture,Certes Computing Ltd,223522," 14,398.56 ",Information Management Services,SME,Programme Expenditure
UK Statistics Family,Office for National Statistics,14/03/2022,Exp - Purchase Of Goods/Services - Contractors,CLOUD ARCHITECTURE,Certes Computing Ltd,223522," 15,372.00 ",Information Management Services,SME,Programme Expenditure
UK Statistics Family,Office for National Statistics,14/03/2022,Exp - Purchase Of Goods/Services - Contractors,Strategy And Architecture,Certes Computing Ltd,223522," 33,819.78 ",Information Management Services,SME,Programme Expenditure
UK Statistics Family,Office for National Statistics,14/03/2022,Exp - Purchase Of Goods/Services - Contractors,Strategy And Architecture,Certes Computing Ltd,223522," 10,376.10 ",Information Management Services,SME,Programme Expenditure
UK Statistics Family,Office for National Statistics,14/03/2022,Exp - Purchase Of Goods/Services - Contractors,Tech Delivery Legacy Sp,Certes Computing Ltd,223522," 14,790.00 ",Information Management Services,SME,Programme Expenditure
UK Statistics Family,Office for National Statistics,14/03/2022,Exp - Purchase Of Goods/Services - Contractors,Tech Delivery Data As A Platform,Certes Computing Ltd,223522," 9,359.06 ",Information Management Services,SME,Programme Expenditure
UK Statistics Family,Office for National Statistics,14/03/2022,Exp - Purchase Of Goods/Services - Contractors,Tech Delivery Next Gen IT And Infrastructure,Certes Computing Ltd,223522," 19,200.00 ",Information Management Services,SME,Programme Expenditure
UK Statistics Family,Office for National Statistics,14/03/2022,Exp - Purchase Of Goods/Services - Contractors,IT Applications,Certes Computing Ltd,223522," 14,398.56 ",Information Management Services,SME,Programme Expenditure
UK Statistics Family,Office for National Statistics,14/03/2022,Exp - Purchase Of Goods/Services - Contractors,IT Operations,Certes Computing Ltd,223522," 16,200.00 ",Information Management Services,SME,Programme Expenditure
UK Statistics Family,Office for National Statistics,14/03/2022,Exp - Purchase Of Goods/Services - Contractors,Digital Delivery,Certes Computing Ltd,223522," 49,061.76 ",Information Management Services,SME,Programme Expenditure
UK Statistics Family,Office for National Statistics,14/03/2022,Exp - Purchase Of Goods/Services - Contractors,Digital Delivery,Certes Computing Ltd,223522," 14,398.56 ",Information Management Services,SME,Programme Expenditure
UK Statistics Family,Office for National Statistics,14/03/2022,Exp - Purchase Of Goods/Services - Contractors,Data As A Service,Certes Computing Ltd,223522," 17,421.60 ",Information Management Services,SME,Programme Expenditure
UK Statistics Family,Office for National Statistics,14/03/2022,Exp - Short-Term Contract & Agency Staff - Full Cost,GSS Strategy Delivery,Malikshaw Interim & Executive,223528," 4,279.70 ",Information Management Services,SME,Programme Expenditure
UK Statistics Family,Office for National Statistics,14/03/2022,Exp - Purchase Of Goods/Services - Contractors,Testing,Malikshaw Interim & Executive,223528," 4,284.00 ",Information Management Services,SME,Programme Expenditure
UK Statistics Family,Office for National Statistics,14/03/2022,Exp - Short-Term Contract & Agency Staff - Full Cost,Strategy And Engagement,Malikshaw Interim & Executive,223528," 4,025.53 ",Information Management Services,SME,Programme Expenditure
UK Statistics Family,Office for National Statistics,14/03/2022,Exp - Short-Term Contract & Agency Staff - Full Cost,Finance,Malikshaw Interim & Executive,223528," 1,628.77 ",Information Management Services,SME,Programme Expenditure
UK Statistics Family,Office for National Statistics,14/03/2022,Exp - Short-Term Contract & Agency Staff - Full Cost,Data Architecture,Malikshaw Interim & Executive,223528," 4,638.46 ",Information Management Services,SME,Programme Expenditure
UK Statistics Family,Office for National Statistics,14/03/2022,Exp - Purchase Of Goods/Services - Contractors,Digital Delivery,Malikshaw Interim & Executive,223528," 15,552.00 ",Information Management Services,SME,Programme Expenditure
UK Statistics Family,Office for National Statistics,14/03/2022,Exp - Purchase Of Goods/Services - IT Contractual Services,Digital Delivery,Methods Business & Digital Technology Ltd,223529," 85,992.00 ",Information Management Services,Large,Programme Expenditure
UK Statistics Family,Office for National Statistics,14/03/2022,Exp - Purchase Of Goods/Services - Incentive Payments,Covid Infection Survey,Sodexo Motivation Solutions U.K. ltd,223533," 259,076.12 ",Survey Response Incentive Vouchers,Large,Programme Expenditure
UK Statistics Family,Office for National Statistics,15/03/2022,Surveys,ECONOMIC CHANGE,Kantar Public UK Ltd.,223668," 93,666.37 ",Statistical Services,SME,Programme Expenditure
UK Statistics Family,Office for National Statistics,15/03/2022,Travel And Subsistence,Corporate Centre,Corporate Travel Management ,223670," 25,945.38 ",Travel and Accommodation,SME,Programme Expenditure
UK Statistics Family,Office for National Statistics,15/03/2022,Other Goods And Services,Policy Secretariat,Royal Statistical Society,223675," 31,688.00 ",Corporate Membership,SME,Programme Expenditure
UK Statistics Family,Office for National Statistics,15/03/2022,Other Goods And Services,UKSA,Royal Statistical Society,223675," 3,600.00 ",Corporate Membership,SME,Programme Expenditure
UK Statistics Family,Office for National Statistics,15/03/2022,Exp - Purchase Of Goods And Services Consultants,Divisional Strategy And Support,Vanguard Cymru,223678," 33,480.00 ",Consultancy,SME,Programme Expenditure
UK Statistics Family,Office for National Statistics,15/03/2022,Exp - Purchase Of Goods And Services Consultants,2023 CENSUS DATA TRANSFORMATION,The Sensible Code Company,223680," 126,912.00 ",Consultancy,SME,Programme Expenditure
UK Statistics Family,Office for National Statistics,15/03/2022,Exp - Purchase Of Goods/Services - Contractors,IT Applications,Talent International,223688," 14,376.00 ",Information Management Services,SME,Programme Expenditure
UK Statistics Family,Office for National Statistics,15/03/2022,Exp - Purchase Of Goods/Services - Contractors,Data As A Service,Talent International,223688," 15,390.00 ",Information Management Services,SME,Programme Expenditure
UK Statistics Family,Office for National Statistics,15/03/2022,Exp - Purchase Of Goods/Services - IT Contractual Services,IT Operations,Towers Associates,223689," 7,920.00 ",Software Licenses,SME,Programme Expenditure
UK Statistics Family,Office for National Statistics,15/03/2022,End User Software And Hardware,IT Operations,Towers Associates,223689," 108,000.00 ",Software Licenses,SME,Programme Expenditure
UK Statistics Family,Office for National Statistics,16/03/2022,Surveys,Crime Statistics,Kantar Public UK Ltd.,223691," 699,440.70 ",Statistical Services,SME,Programme Expenditure
UK Statistics Family,Office for National Statistics,16/03/2022,Surveys,Policy Secretariat,Natcen Social Research,223694," 100,382.40 ",Statistical Services,Large,Programme Expenditure
UK Statistics Family,Office for National Statistics,16/03/2022,Telecoms,IT Operations,Bt Global Services,223714," 28,726.41 ",Telecommunications,Large,Programme Expenditure
UK Statistics Family,Office for National Statistics,17/03/2022,Exp - Purchase Of Goods/Services - IT Contractual Services,Strategy And Architecture,Ibm United Kingdom Ltd,223944," 73,152.00 ",Information Management Services,Large,Programme Expenditure
UK Statistics Family,Office for National Statistics,17/03/2022,Exp - Purchase Of Goods/Services - Contractors,IT Operations,Ibm United Kingdom Ltd,223944," 23,497.20 ",Information Management Services,Large,Programme Expenditure
UK Statistics Family,Office for National Statistics,17/03/2022,Exp - Purchase Of Goods/Services - IT Contractual Services,IT Operations,Ibm United Kingdom Ltd,223944," 33,902.88 ",Information Management Services,Large,Programme Expenditure
UK Statistics Family,Office for National Statistics,17/03/2022,Exp - Purchase Of Goods/Services - Contractors,Commercial Services,Certes Computing Ltd,223949," 29,461.90 ",Information Management Services,SME,Programme Expenditure
UK Statistics Family,Office for National Statistics,17/03/2022,End User Software And Hardware,IT Operations,Computacenter (Uk) Limited,223953," 98,218.80 ",Computers and Peripherals,Large,Programme Expenditure
UK Statistics Family,Office for National Statistics,17/03/2022,Hosting,CLOUD ARCHITECTURE,Amazon Web Services Inc,223960," 109,433.73 ",Information Management Services,Large,Programme Expenditure
UK Statistics Family,Office for National Statistics,17/03/2022,Hosting,CDIO UNGP,Amazon Web Services Inc,223960,"-2,550.35 ",Information Management Services,Large,Programme Expenditure
UK Statistics Family,Office for National Statistics,17/03/2022,Hosting,IT Operations,Amazon Web Services Inc,223960," 149,680.41 ",Information Management Services,Large,Programme Expenditure
UK Statistics Family,Office for National Statistics,17/03/2022,Exp - Purchase Of Goods/Services - Contractors,Data Capability,Parity Resources Limited,223962," 7,839.46 ",Information Management Services,Large,Programme Expenditure
UK Statistics Family,Office for National Statistics,17/03/2022,Exp - Short-Term Contract & Agency Staff - Full Cost,Recruitment ,Parity Resources Limited,223962," 1,025.64 ",Information Management Services,Large,Programme Expenditure
UK Statistics Family,Office for National Statistics,17/03/2022,Exp - Purchase Of Goods/Services - Contractors,CLOUD ARCHITECTURE,Parity Resources Limited,223962," 3,430.50 ",Information Management Services,Large,Programme Expenditure
UK Statistics Family,Office for National Statistics,17/03/2022,Exp - Purchase Of Goods/Services - Contractors,IT Applications,Parity Resources Limited,223962," 4,713.30 ",Information Management Services,Large,Programme Expenditure
UK Statistics Family,Office for National Statistics,17/03/2022,Exp - Purchase Of Goods/Services - Contractors,IT Operations,Parity Resources Limited,223962," 18,962.40 ",Information Management Services,Large,Programme Expenditure
UK Statistics Family,Office for National Statistics,17/03/2022,Exp - Purchase Of Goods/Services - Contractors,Digital Delivery,Parity Resources Limited,223962," 3,870.00 ",Information Management Services,Large,Programme Expenditure
UK Statistics Family,Office for National Statistics,17/03/2022,Print & Post,Survey Processing Centre,APS Group,223972," 9,154.20 ",Print and Post Services,Large,Programme Expenditure
UK Statistics Family,Office for National Statistics,17/03/2022,Print & Post,Social Survey Transformation Newport,APS Group,223972," 19,371.31 ",Print and Post Services,Large,Programme Expenditure
UK Statistics Family,Office for National Statistics,17/03/2022,Print & Post,Social Surveys Division,APS Group,223972," 2,210.68 ",Print and Post Services,Large,Programme Expenditure
UK Statistics Family,Office for National Statistics,18/03/2022,Surveys,International Trade And Transactions,Mango Solutions,223977," 46,920.00 ",Information Management Services,SME,Programme Expenditure
UK Statistics Family,Office for National Statistics,18/03/2022,Buildings Under Construction,Property Newport,Vinci Construction UK Limited,223979," 76,945.77 ",Facilities Mangement Services,Large,Programme Expenditure
UK Statistics Family,Office for National Statistics,18/03/2022,Major Works Over 25K,Property Titchfield,Vinci Construction UK Limited,223979," 24,858.60 ",Facilities Mangement Services,Large,Programme Expenditure
UK Statistics Family,Office for National Statistics,18/03/2022,Major Works Over 25K,Property Titchfield,Vinci Construction UK Limited,223979," 12,772.50 ",Facilities Mangement Services,Large,Programme Expenditure
UK Statistics Family,Office for National Statistics,18/03/2022,FM Contract Payments,Vinci Payments,Vinci Construction UK Limited,223979," 284,598.81 ",Facilities Mangement Services,Large,Programme Expenditure
UK Statistics Family,Office for National Statistics,18/03/2022,End User Software And Hardware,IT Operations,Phoenix Software Ltd,223981," 30,394.37 ",Software Licenses,SME,Programme Expenditure
UK Statistics Family,Office for National Statistics,18/03/2022,Postage,Survey Processing Centre,DHL Parcel Ltd,223982," 68,019.29 ",Postage Services,Large,Programme Expenditure
UK Statistics Family,Office for National Statistics,18/03/2022,Exp - Purchase Of Goods/Services - Contractors,Business Architecture,La International,223985," 5,154.71 ",Information Management Services,SME,Programme Expenditure
UK Statistics Family,Office for National Statistics,18/03/2022,Exp - Purchase Of Goods/Services - Contractors,Testing,La International,223985," 21,633.78 ",Information Management Services,SME,Programme Expenditure
UK Statistics Family,Office for National Statistics,18/03/2022,Exp - Purchase Of Goods/Services - Contractors,Testing,La International,223985," 4,194.00 ",Information Management Services,SME,Programme Expenditure
UK Statistics Family,Office for National Statistics,18/03/2022,Exp - Purchase Of Goods/Services - Contractors,Testing,La International,223985," 3,317.65 ",Information Management Services,SME,Programme Expenditure
UK Statistics Family,Office for National Statistics,18/03/2022,Exp - Purchase Of Goods/Services - Contractors,Consultancy Management,La International,223985," 3,588.30 ",Information Management Services,SME,Programme Expenditure
UK Statistics Family,Office for National Statistics,18/03/2022,Exp - Purchase Of Goods/Services - Contractors,Digital Publishing,La International,223985," 22,559.72 ",Information Management Services,SME,Programme Expenditure
UK Statistics Family,Office for National Statistics,18/03/2022,Exp - Purchase Of Goods/Services - Contractors,ANALYTICAL ENGAGEMENT AND IMPACT,La International,223985," 3,450.00 ",Information Management Services,SME,Programme Expenditure
UK Statistics Family,Office for National Statistics,18/03/2022,Exp - Purchase Of Goods/Services - Contractors,Data Architecture,La International,223985," 3,981.18 ",Information Management Services,SME,Programme Expenditure
UK Statistics Family,Office for National Statistics,18/03/2022,Exp - Purchase Of Goods/Services - Contractors,Data Architecture,La International,223985," 4,281.18 ",Information Management Services,SME,Programme Expenditure
UK Statistics Family,Office for National Statistics,18/03/2022,Exp - Purchase Of Goods/Services - Contractors,Tech Delivery Legacy Sp,La International,223985," 4,701.18 ",Information Management Services,SME,Programme Expenditure
UK Statistics Family,Office for National Statistics,18/03/2022,Exp - Purchase Of Goods/Services - Contractors,Tech Delivery Data As A Platform,La International,223985," 3,981.18 ",Information Management Services,SME,Programme Expenditure
UK Statistics Family,Office for National Statistics,18/03/2022,Exp - Purchase Of Goods/Services - Contractors,IT Applications,La International,223985," 14,846.78 ",Information Management Services,SME,Programme Expenditure
UK Statistics Family,Office for National Statistics,18/03/2022,Exp - Purchase Of Goods/Services - Contractors,Digital Delivery,La International,223985," 7,176.60 ",Information Management Services,SME,Programme Expenditure
UK Statistics Family,Office for National Statistics,18/03/2022,Exp - Purchase Of Goods And Services Consultants,INTEGRATED DATA STRATEGY AND DELIVERY,Deloitte,223986," 184,339.20 ",Consultancy,Large,Programme Expenditure
UK Statistics Family,Office for National Statistics,18/03/2022,Hosting,IT Operations,CTS (Cloud Technology Solutions Ltd),223991," 146,681.20 ",Information Management Services,Large,Programme Expenditure
UK Statistics Family,Office for National Statistics,18/03/2022,Exp - Purchase Of Goods/Services - IT Contractual Services,Digital Delivery,Methods Business & Digital Technology Ltd,223998," 39,180.00 ",Information Management Services,Large,Programme Expenditure
UK Statistics Family,Office for National Statistics,18/03/2022,Exp - Purchase Of Goods/Services - Incentive Payments,Covid Infection Survey,Sodexo Motivation Solutions U.K. ltd,223999," 135,833.96 ",Survey Response Incentive Vouchers,Large,Programme Expenditure
UK Statistics Family,Office for National Statistics,18/03/2022,Other Goods And Services,Strategy And Engagement,Sodexo Motivation Solutions U.K. ltd,223999," 75,050.72 ",Survey Response Incentive Vouchers,Large,Programme Expenditure
UK Statistics Family,Office for National Statistics,18/03/2022,Other Goods And Services,Survey Management,Sodexo Motivation Solutions U.K. ltd,223999," 8,442.35 ",Survey Response Incentive Vouchers,Large,Programme Expenditure
UK Statistics Family,Office for National Statistics,18/03/2022,Exp - Purchase Of Goods/Services - Contractors,Consultancy Management,LA FOSSE ASSOCIATES LIMITED,224000," 10,920.00 ",Information Management Services,Large,Programme Expenditure
UK Statistics Family,Office for National Statistics,18/03/2022,Exp - Purchase Of Goods/Services - Contractors,Data Architecture,LA FOSSE ASSOCIATES LIMITED,224000," 14,400.00 ",Information Management Services,Large,Programme Expenditure
UK Statistics Family,Office for National Statistics,18/03/2022,Exp - Purchase Of Goods/Services - Contractors,Data Architecture,LA FOSSE ASSOCIATES LIMITED,224000," 14,400.00 ",Information Management Services,Large,Programme Expenditure
UK Statistics Family,Office for National Statistics,18/03/2022,Exp - Purchase Of Goods/Services - Contractors,Testing,Parity Resources Limited,224003," 5,098.76 ",Information Management Services,Large,Programme Expenditure
UK Statistics Family,Office for National Statistics,18/03/2022,Exp - Purchase Of Goods/Services - Contractors,Consultancy Management,Parity Resources Limited,224003," 7,200.00 ",Information Management Services,Large,Programme Expenditure
UK Statistics Family,Office for National Statistics,18/03/2022,Exp - Purchase Of Goods/Services - Contractors,Covid Infection Survey,Parity Resources Limited,224003," 2,993.80 ",Information Management Services,Large,Programme Expenditure
UK Statistics Family,Office for National Statistics,18/03/2022,Exp - Purchase Of Goods/Services - Contractors,Data Architecture,Parity Resources Limited,224003," 24,171.90 ",Information Management Services,Large,Programme Expenditure
UK Statistics Family,Office for National Statistics,18/03/2022,Exp - Purchase Of Goods/Services - Contractors,GSS Strategy Delivery,Humankind Research,224004," 74,856.00 ",Data Acquisition,SME,Programme Expenditure
UK Statistics Family,Office for National Statistics,18/03/2022,Exp - Short-Term Contract & Agency Staff - Full Cost,Data Architecture,Talent International,224008," 3,203.90 ",Information Management Services,SME,Programme Expenditure
UK Statistics Family,Office for National Statistics,18/03/2022,Exp - Purchase Of Goods/Services - Contractors,Data Architecture,Talent International,224008, 960.00 ,Information Management Services,SME,Programme Expenditure
UK Statistics Family,Office for National Statistics,18/03/2022,Exp - Purchase Of Goods/Services - Contractors,Data Architecture,Talent International,224008," 18,240.00 ",Information Management Services,SME,Programme Expenditure
UK Statistics Family,Office for National Statistics,18/03/2022,Exp - Short-Term Contract & Agency Staff - Full Cost,Data As A Service,Talent International,224008," 3,889.63 ",Information Management Services,SME,Programme Expenditure
UK Statistics Family,Office for National Statistics,18/03/2022,End User Software And Hardware,IT Operations,Gartner (CEB),224010," 47,520.00 ",Information Management Services,Large,Programme Expenditure
UK Statistics Family,Office for National Statistics,21/03/2022,Exp - Purchase Of Goods/Services - IT Contractual Services,Digital Publishing,Swirrl It Ltd,224157," 71,640.00 ",Information Management Services,SME,Programme Expenditure
UK Statistics Family,Office for National Statistics,21/03/2022,Prepayments - Titchfield Postage Meter,Postal charges,Pitney Bowes Ltd,224160," 187,271.30 ",Postage Services,Large,Programme Expenditure
UK Statistics Family,Office for National Statistics,21/03/2022,Training & Development,Learning And Capability,Ernst & Young LLP,224164," 26,597.40 ",Training and Educational Services,Large,Programme Expenditure
UK Statistics Family,Office for National Statistics,21/03/2022,Exp - Purchase Of Goods/Services - IT Contractual Services,Digital Publishing,Armakuni Ltd,224173," 122,820.00 ",Information Management Services,SME,Programme Expenditure
UK Statistics Family,Office for National Statistics,22/03/2022,Exp - Purchase Of Goods/Services - IT Contractual Services,Digital Publishing,Swirrl It Ltd,224276," 300,000.00 ",Information Management Services,SME,Programme Expenditure
UK Statistics Family,Office for National Statistics,22/03/2022,Buildings Under Construction,Property Services,Vinci Construction UK Limited,224278," 31,314.00 ",Facilities Mangement Services,Large,Programme Expenditure
UK Statistics Family,Office for National Statistics,22/03/2022,Major Works Over 25K,Property Newport,Vinci Construction UK Limited,224278," 25,621.76 ",Facilities Mangement Services,Large,Programme Expenditure
UK Statistics Family,Office for National Statistics,22/03/2022,Exp - Purchase Of Goods/Services - Other ICT Costs Software,Finance,Scc,224279," 154,286.88 ",Software Licenses,Large,Programme Expenditure
UK Statistics Family,Office for National Statistics,22/03/2022,"ICT Outsourcing, Maintenance And Support",Covid Infection Survey,Equiniti Limited,224282," 6,888.00 ",Information Management Services,Large,Programme Expenditure
UK Statistics Family,Office for National Statistics,22/03/2022,"ICT Outsourcing, Maintenance And Support",Covid Infection Survey,Equiniti Limited,224282," 14,549.84 ",Information Management Services,Large,Programme Expenditure
UK Statistics Family,Office for National Statistics,22/03/2022,"ICT Outsourcing, Maintenance And Support",Researcher Support And Data Access ,Equiniti Limited,224282," 166,167.98 ",Information Management Services,Large,Programme Expenditure
UK Statistics Family,Office for National Statistics,22/03/2022,Hosting,IT Operations,Equiniti Limited,224282," 51,041.75 ",Information Management Services,Large,Programme Expenditure
UK Statistics Family,Office for National Statistics,22/03/2022,Exp - Purchase Of Goods And Services Consultants,2023 CENSUS DATA TRANSFORMATION,University of Salford,224283," 150,000.00 ",Digitisation Services,Large,Programme Expenditure
UK Statistics Family,Office for National Statistics,22/03/2022,Surveys,Business Outputs And Developments,Iff Research,224289," 37,183.50 ",Statistical Services,Large,Programme Expenditure
UK Statistics Family,Office for National Statistics,22/03/2022,Fixtures & Fittings At Cost - Additions,Property Newport,Gresham Office Furniture Limited,224291," 15,060.00 ",Office Furniture,SME,Programme Expenditure
UK Statistics Family,Office for National Statistics,22/03/2022,Fixtures & Fittings At Cost - Additions,Property Titchfield,Gresham Office Furniture Limited,224291," 20,217.02 ",Office Furniture,SME,Programme Expenditure
UK Statistics Family,Office for National Statistics,22/03/2022,Exp - Purchase Of Goods/Services - Contractors,Analysis Microdata And Engagement,Parity Resources Limited,224296, 740.11 ,Information Management Services,Large,Programme Expenditure
UK Statistics Family,Office for National Statistics,22/03/2022,Exp - Purchase Of Goods/Services - Contractors,Strategy And Architecture,Parity Resources Limited,224296," 22,499.70 ",Information Management Services,Large,Programme Expenditure
UK Statistics Family,Office for National Statistics,22/03/2022,Exp - Purchase Of Goods/Services - Contractors,IT Operations,Parity Resources Limited,224296," 22,920.90 ",Information Management Services,Large,Programme Expenditure
UK Statistics Family,Office for National Statistics,22/03/2022,Exp - Purchase Of Goods/Services - Contractors,Digital Delivery,Parity Resources Limited,224296," 3,870.00 ",Information Management Services,Large,Programme Expenditure
UK Statistics Family,Office for National Statistics,22/03/2022,Exp - Purchase Of Goods And Services Consultants,Internal Audit,Gartner (CEB),224301," 39,600.00 ",Consultancy,Large,Programme Expenditure
UK Statistics Family,Office for National Statistics,23/03/2022,Exp - Purchase Of Goods/Services - IT Contractual Services,Finance,Accenture (UK) Limited,224316," 52,500.00 ",Consultancy,SME,Programme Expenditure
UK Statistics Family,Office for National Statistics,23/03/2022,"ICT Outsourcing, Maintenance And Support",Researcher Support And Data Access ,Equiniti-TopLevel,224325," 42,854.40 ",Information Management Services,SME,Programme Expenditure
UK Statistics Family,Office for National Statistics,23/03/2022,Specialist User Software And Hardware,IT Operations,Boxxe Ltd,224329," 66,355.62 ",Software Licenses,SME,Programme Expenditure
UK Statistics Family,Office for National Statistics,23/03/2022,Other Goods And Services,Census & Soc Methodology Dd,Alma Economics,224330," 26,280.00 ",Consultancy,Large,Programme Expenditure
UK Statistics Family,Office for National Statistics,23/03/2022,Surveys,Social Surveys Division,Natcen Social Research,224335," 105,638.27 ",Statistical Services,Large,Programme Expenditure
UK Statistics Family,Office for National Statistics,23/03/2022,Training & Development,Portfolio Delivery,KPMG LLP,224336," 29,811.20 ",Training and Educational Services,SME,Programme Expenditure
UK Statistics Family,Office for National Statistics,23/03/2022,Training & Development,Learning And Capability,KPMG LLP,224336," 35,440.00 ",Training and Educational Services,SME,Programme Expenditure
UK Statistics Family,Office for National Statistics,23/03/2022,Training & Development,Office Of Chief Data And Information,KPMG LLP,224336," 1,044.00 ",Training and Educational Services,SME,Programme Expenditure
UK Statistics Family,Office for National Statistics,23/03/2022,Buildings Under Construction,Property Services,Vinci Construction UK Limited,224337," 38,202.14 ",Facilities Mangement Services,Large,Programme Expenditure
UK Statistics Family,Office for National Statistics,23/03/2022,Exp - Purchase Of Goods/Services - Accommodation & Bldng Management - Miscellaneous Minor Works,Property Titchfield,Vinci Construction UK Limited,224337," 10,200.96 ",Facilities Mangement Services,Large,Programme Expenditure
UK Statistics Family,Office for National Statistics,23/03/2022,Exp - Purchase Of Goods/Services - Contractors,Digital Publishing,La International,224340," 9,462.36 ",Information Management Services,SME,Programme Expenditure
UK Statistics Family,Office for National Statistics,23/03/2022,Exp - Purchase Of Goods/Services - Contractors,Data Architecture,La International,224340," 10,778.84 ",Information Management Services,SME,Programme Expenditure
UK Statistics Family,Office for National Statistics,23/03/2022,Exp - Purchase Of Goods/Services - Contractors,Data Architecture,La International,224340," 7,964.76 ",Information Management Services,SME,Programme Expenditure
UK Statistics Family,Office for National Statistics,24/03/2022,Travel And Subsistence,Corporate Centre,Corporate Travel Management ,224544," 26,260.30 ",Travel and Accommodation,SME,Programme Expenditure
UK Statistics Family,Office for National Statistics,24/03/2022,Fixtures & Fittings At Cost - Additions,Property Newport,Gresham Office Furniture Limited,224561," 26,505.60 ",Office Furniture,SME,Programme Expenditure
UK Statistics Family,Office for National Statistics,24/03/2022,Training & Development,Learning And Capability,Insights Learning and Development Limited,224562," 17,385.20 ",Training and Educational Services,SME,Programme Expenditure
UK Statistics Family,Office for National Statistics,24/03/2022,Training & Development,Learning And Capability,Insights Learning and Development Limited,224562," 29,350.00 ",Training and Educational Services,SME,Programme Expenditure
UK Statistics Family,Office for National Statistics,24/03/2022,Exp - Purchase Of Goods/Services - Incentive Payments,Social Survey Transformation Newport,Sodexo Motivation Solutions U.K. ltd,224565," 17,311.96 ",Survey Response Incentive Vouchers,Large,Programme Expenditure
UK Statistics Family,Office for National Statistics,24/03/2022,Exp - Purchase Of Goods/Services - Incentive Payments,Social Survey Transformation Newport,Sodexo Motivation Solutions U.K. ltd,224565," 4,811.69 ",Survey Response Incentive Vouchers,Large,Programme Expenditure
UK Statistics Family,Office for National Statistics,24/03/2022,Exp - Purchase Of Goods/Services - Incentive Payments,Survey Management,Sodexo Motivation Solutions U.K. ltd,224565, 424.41 ,Survey Response Incentive Vouchers,Large,Programme Expenditure
UK Statistics Family,Office for National Statistics,24/03/2022,Exp - Purchase Of Goods/Services - Incentive Payments,Survey Management,Sodexo Motivation Solutions U.K. ltd,224565," 1,075.59 ",Survey Response Incentive Vouchers,Large,Programme Expenditure
UK Statistics Family,Office for National Statistics,24/03/2022,Exp - Purchase Of Goods/Services - Incentive Payments,Survey Management,Sodexo Motivation Solutions U.K. ltd,224565," 3,775.26 ",Survey Response Incentive Vouchers,Large,Programme Expenditure
UK Statistics Family,Office for National Statistics,24/03/2022,Exp - Purchase Of Goods/Services - Incentive Payments,Survey Management,Sodexo Motivation Solutions U.K. ltd,224565, 503.37 ,Survey Response Incentive Vouchers,Large,Programme Expenditure
UK Statistics Family,Office for National Statistics,24/03/2022,Exp - Purchase Of Goods/Services - Incentive Payments,Social Survey Transformation Newport,Sodexo Motivation Solutions U.K. ltd,224565," 38,818.79 ",Survey Response Incentive Vouchers,Large,Programme Expenditure
UK Statistics Family,Office for National Statistics,24/03/2022,Exp - Purchase Of Goods/Services - Incentive Payments,Social Survey Transformation Newport,Sodexo Motivation Solutions U.K. ltd,224565," 9,317.26 ",Survey Response Incentive Vouchers,Large,Programme Expenditure
UK Statistics Family,Office for National Statistics,24/03/2022,Exp - Purchase Of Goods/Services - Incentive Payments,Survey Management,Sodexo Motivation Solutions U.K. ltd,224565, 473.74 ,Survey Response Incentive Vouchers,Large,Programme Expenditure
UK Statistics Family,Office for National Statistics,24/03/2022,Exp - Purchase Of Goods/Services - Incentive Payments,Survey Management,Sodexo Motivation Solutions U.K. ltd,224565," 1,401.32 ",Survey Response Incentive Vouchers,Large,Programme Expenditure
UK Statistics Family,Office for National Statistics,24/03/2022,Exp - Purchase Of Goods/Services - Incentive Payments,Survey Management,Sodexo Motivation Solutions U.K. ltd,224565," 15,119.73 ",Survey Response Incentive Vouchers,Large,Programme Expenditure
UK Statistics Family,Office for National Statistics,24/03/2022,Exp - Purchase Of Goods/Services - Incentive Payments,Survey Management,Sodexo Motivation Solutions U.K. ltd,224565, 948.68 ,Survey Response Incentive Vouchers,Large,Programme Expenditure
UK Statistics Family,Office for National Statistics,24/03/2022,Exp - Purchase Of Goods/Services - Incentive Payments,Covid Infection Survey,Sodexo Motivation Solutions U.K. ltd,224565," 32,888.44 ",Survey Response Incentive Vouchers,Large,Programme Expenditure
UK Statistics Family,Office for National Statistics,25/03/2022,Surveys,Social Surveys Division,Natcen Social Research,224573," 48,081.60 ",Statistical Services,Large,Programme Expenditure
UK Statistics Family,Office for National Statistics,25/03/2022,FM Contract Payments,Vinci Payments,Vinci Construction UK Limited,224574," 97,882.50 ",Facilities Mangement Services,Large,Programme Expenditure
UK Statistics Family,Office for National Statistics,25/03/2022,IT (Owned) At Cost - Additions,Data Science Campus,Stone Computers,224575," 51,436.44 ",Computers and Peripherals,Large,Programme Expenditure
UK Statistics Family,Office for National Statistics,25/03/2022,Software Licences At Cost - Additions,IT Operations,Softcat,224576," 101,754.05 ",Software Licenses,SME,Programme Expenditure
UK Statistics Family,Office for National Statistics,25/03/2022,Exp - Purchase Of Goods/Services - Contractors,Digital Publishing,Certes Computing Ltd,224578," 25,917.41 ",Information Management Services,SME,Programme Expenditure
UK Statistics Family,Office for National Statistics,25/03/2022,Exp - Purchase Of Goods/Services - Contractors,Tech Delivery Legacy Sp,Certes Computing Ltd,224578," 8,700.00 ",Information Management Services,SME,Programme Expenditure
UK Statistics Family,Office for National Statistics,25/03/2022,Exp - Purchase Of Goods/Services - Contractors,2023 CENSUS DATA TRANSFORMATION,La International,224579," 8,009.64 ",Information Management Services,SME,Programme Expenditure
UK Statistics Family,Office for National Statistics,25/03/2022,Exp - Purchase Of Goods/Services - Contractors,Digital Publishing,La International,224579," 12,815.52 ",Information Management Services,SME,Programme Expenditure
UK Statistics Family,Office for National Statistics,25/03/2022,Exp - Purchase Of Goods/Services - Contractors,STRATEGY SYNTHESIS AND CO-ORDINATION,La International,224579," 5,051.04 ",Information Management Services,SME,Programme Expenditure
UK Statistics Family,Office for National Statistics,25/03/2022,Exp - Purchase Of Goods/Services - Contractors,Tech Delivery Legacy Sp,La International,224579," 12,321.60 ",Information Management Services,SME,Programme Expenditure
UK Statistics Family,Office for National Statistics,25/03/2022,Exp - Purchase Of Goods/Services - Contractors,Tech Delivery Data As A Platform,La International,224579," 4,165.02 ",Information Management Services,SME,Programme Expenditure
UK Statistics Family,Office for National Statistics,25/03/2022,Exp - Purchase Of Goods/Services - Contractors,IT Operations,La International,224579," 3,844.62 ",Information Management Services,SME,Programme Expenditure
UK Statistics Family,Office for National Statistics,25/03/2022,Fixtures & Fittings At Cost - Additions,Property Newport,Gresham Office Furniture Limited,224585," 29,295.90 ",Office Furniture,SME,Programme Expenditure
UK Statistics Family,Office for National Statistics,25/03/2022,Fixtures & Fittings At Cost - Additions,Property Titchfield,Gresham Office Furniture Limited,224585," 24,542.40 ",Office Furniture,SME,Programme Expenditure
UK Statistics Family,Office for National Statistics,25/03/2022,Exp - Purchase Of Goods/Services - Training & Development - Seminar & Conference Fees,Finance,Insights Learning and Development Limited,224586," 12,071.28 ",Training and Educational Services,SME,Programme Expenditure
UK Statistics Family,Office for National Statistics,25/03/2022,Purchase of Goods and Services - Training,Interviewer Support,Insights Learning and Development Limited,224586," 8,140.80 ",Training and Educational Services,SME,Programme Expenditure
UK Statistics Family,Office for National Statistics,25/03/2022,Purchase of Goods and Services - Training,Social Surveys Division,Insights Learning and Development Limited,224586," 8,140.80 ",Training and Educational Services,SME,Programme Expenditure
UK Statistics Family,Office for National Statistics,25/03/2022,"ICT Outsourcing, Maintenance And Support",CDIO UNGP,Bloom Procurement Services Ltd,224588," 96,803.90 ",Consultancy,Large,Programme Expenditure
UK Statistics Family,Office for National Statistics,25/03/2022,Exp - Purchase Of Goods And Services Consultants,Digital Media,Methods Business & Digital Technology Ltd,224589," 33,600.00 ",Information Management Services,Large,Programme Expenditure
UK Statistics Family,Office for National Statistics,25/03/2022,Non IT Maintenance And Hire,Survey Processing Centre,Xerox UK Limited,224590," 25,490.33 ",Reprographic Services,Large,Programme Expenditure
UK Statistics Family,Office for National Statistics,25/03/2022,Fixtures & Fittings At Cost - Additions,Property Newport,Orange box Limited,224593," 31,584.96 ",Office Furniture,SME,Programme Expenditure
UK Statistics Family,Office for National Statistics,28/03/2022,Surveys,Crime Statistics,Kantar Public UK Ltd.,224745," 699,440.70 ",Statistical Services,SME,Programme Expenditure
UK Statistics Family,Office for National Statistics,28/03/2022,Capitalised Specialist Contractors IT,Tech Delivery Data As A Platform,Kainos,224752," 406,329.14 ",Information Management Services,Large,Programme Expenditure
UK Statistics Family,Office for National Statistics,28/03/2022,Buildings Under Construction,Property Services,Vinci Construction UK Limited,224754," 194,604.18 ",Facilities Mangement Services,Large,Programme Expenditure
UK Statistics Family,Office for National Statistics,28/03/2022,Exp - Purchase Of Goods/Services - Accommodation & Bldng Management - Miscellaneous Minor Works,Property Titchfield,Vinci Construction UK Limited,224754," 26,103.02 ",Facilities Mangement Services,Large,Programme Expenditure
UK Statistics Family,Office for National Statistics,28/03/2022,Other Goods And Services,Strategy And Organisational Effectiveness,Vinci Construction UK Limited,224754," 8,076.97 ",Facilities Mangement Services,Large,Programme Expenditure
UK Statistics Family,Office for National Statistics,28/03/2022,Exp - Short-Term Contract & Agency Staff - Full Cost,Crime Income And Wealth,Concept Information Technology Ltd T/A Concept Resourcing,224755," 22,502.72 ",Information Management Services,Large,Programme Expenditure
UK Statistics Family,Office for National Statistics,28/03/2022,Exp - Short-Term Contract & Agency Staff - Full Cost,Crime Income And Wealth,Concept Information Technology Ltd T/A Concept Resourcing,224755," 5,075.81 ",Information Management Services,Large,Programme Expenditure
UK Statistics Family,Office for National Statistics,28/03/2022,End User Software And Hardware,IT Operations,Phoenix Software Ltd,224757," 103,936.80 ",Software Licenses,SME,Programme Expenditure
UK Statistics Family,Office for National Statistics,28/03/2022,Exp - Purchase Of Goods And Services Consultants,Productivity Research And Professional Development,Niesr,224758," 392,066.40 ",Statistical Services,SME,Programme Expenditure
UK Statistics Family,Office for National Statistics,28/03/2022,Exp - Purchase Of Goods/Services - Contractors,Business Architecture,La International,224760," 1,796.47 ",Information Management Services,SME,Programme Expenditure
UK Statistics Family,Office for National Statistics,28/03/2022,Exp - Purchase Of Goods/Services - Contractors,Testing,La International,224760," 20,777.54 ",Information Management Services,SME,Programme Expenditure
UK Statistics Family,Office for National Statistics,28/03/2022,Exp - Purchase Of Goods/Services - Contractors,Testing,La International,224760," 4,194.00 ",Information Management Services,SME,Programme Expenditure
UK Statistics Family,Office for National Statistics,28/03/2022,Exp - Purchase Of Goods/Services - Contractors,Consultancy Management,La International,224760," 3,588.30 ",Information Management Services,SME,Programme Expenditure
UK Statistics Family,Office for National Statistics,28/03/2022,Exp - Purchase Of Goods/Services - Contractors,Digital Publishing,La International,224760," 10,480.20 ",Information Management Services,SME,Programme Expenditure
UK Statistics Family,Office for National Statistics,28/03/2022,Exp - Purchase Of Goods/Services - Contractors,Tech Delivery Legacy Sp,La International,224760," 17,022.78 ",Information Management Services,SME,Programme Expenditure
UK Statistics Family,Office for National Statistics,28/03/2022,Exp - Purchase Of Goods/Services - Contractors,Tech Delivery Data As A Platform,La International,224760," 4,165.02 ",Information Management Services,SME,Programme Expenditure
UK Statistics Family,Office for National Statistics,28/03/2022,Exp - Purchase Of Goods/Services - Contractors,Tech Delivery Data As A Platform,La International,224760," 7,962.36 ",Information Management Services,SME,Programme Expenditure
UK Statistics Family,Office for National Statistics,28/03/2022,Exp - Purchase Of Goods/Services - Contractors,Tech Delivery Data As A Platform,La International,224760," 3,981.18 ",Information Management Services,SME,Programme Expenditure
UK Statistics Family,Office for National Statistics,28/03/2022,Exp - Purchase Of Goods/Services - Contractors,IT Applications,La International,224760," 11,565.84 ",Information Management Services,SME,Programme Expenditure
UK Statistics Family,Office for National Statistics,28/03/2022,Exp - Purchase Of Goods/Services - Contractors,IT Operations,La International,224760," 4,340.16 ",Information Management Services,SME,Programme Expenditure
UK Statistics Family,Office for National Statistics,28/03/2022,Exp - Purchase Of Goods/Services - Contractors,Digital Delivery,La International,224760," 2,870.64 ",Information Management Services,SME,Programme Expenditure
UK Statistics Family,Office for National Statistics,28/03/2022,Fixtures & Fittings At Cost - Additions,Property Newport,Gresham Office Furniture Limited,224762," 20,169.00 ",Office Furniture,SME,Programme Expenditure
UK Statistics Family,Office for National Statistics,28/03/2022,Fixtures & Fittings At Cost - Additions,Property Titchfield,Gresham Office Furniture Limited,224762," 4,937.76 ",Office Furniture,SME,Programme Expenditure
UK Statistics Family,Office for National Statistics,28/03/2022,Exp - Purchase Of Goods/Services - Incentive Payments,Covid Infection Survey,Sodexo Motivation Solutions U.K. ltd,224763," 168,713.80 ",Survey Response Incentive Vouchers,Large,Programme Expenditure
UK Statistics Family,Office for National Statistics,29/03/2022,Buildings Under Construction,Property Services,Vinci Construction UK Limited,224899," 17,260.84 ",Facilities Mangement Services,Large,Programme Expenditure
UK Statistics Family,Office for National Statistics,29/03/2022,Major Works Over 25K,Property Newport,Vinci Construction UK Limited,224899," 44,110.68 ",Facilities Mangement Services,Large,Programme Expenditure
UK Statistics Family,Office for National Statistics,29/03/2022,"ICT Outsourcing, Maintenance And Support",Business Statistics Transformation,Phoenix Software Ltd,224902," 33,227.05 ",Software Licenses,SME,Programme Expenditure
UK Statistics Family,Office for National Statistics,29/03/2022,Fixtures & Fittings At Cost - Additions,Property Newport,Gresham Office Furniture Limited,224907," 40,651.58 ",Office Furniture,SME,Programme Expenditure
UK Statistics Family,Office for National Statistics,29/03/2022,Fixtures & Fittings At Cost - Additions,Property Titchfield,Gresham Office Furniture Limited,224907," 22,377.06 ",Office Furniture,SME,Programme Expenditure
UK Statistics Family,Office for National Statistics,29/03/2022,Exp - Purchase Of Goods/Services - IT Contractual Services,Tech Delivery Legacy Sp,CTS (Cloud Technology Solutions Ltd),224908," 86,826.00 ",Information Management Services,Large,Programme Expenditure
UK Statistics Family,Office for National Statistics,29/03/2022,EXP - PURCHASE OF GOODS/SERVICES - DATA ACQUISITION,International Trade And Transactions,Bureau Van Dijk Electronic Publishing,224909," 48,000.00 ",Data Acquisition,SME,Programme Expenditure
UK Statistics Family,Office for National Statistics,07/03/2022,Exp - Purchase Of Goods/Services - Incentive Payments,Covid Infection Survey,Sodexo Motivation Solutions U.K. ltd,30003322," 1,805,355.90 ",Survey Response Incentive Vouchers,Large,Programme Expenditure
UK Statistics Family,Office for National Statistics,14/03/2022,Exp - Purchase Of Goods/Services - Incentive Payments,Covid Infection Survey,Sodexo Motivation Solutions U.K. ltd,30003327," 1,312,407.74 ",Survey Response Incentive Vouchers,Large,Programme Expenditure
UK Statistics Family,Office for National Statistics,22/03/2022,Surveys,Covid Infection Survey,IQVIA Limited,30003340," 21,120,000.00 ",Statistical Services,Large,Programme Expenditure
UK Statistics Family,Office for National Statistics,29/03/2022,Surveys,Covid Infection Survey,IQVIA Limited,30003360," 3,425,883.64 ",Statistical Services,Large,Programme Expenditure
UK Statistics Family,Office for National Statistics,29/03/2022,Exp - Purchase Of Goods/Services - Incentive Payments,Covid Infection Survey,Sodexo Motivation Solutions U.K. ltd,30003361," 4,407,428.19 ",Survey Response Incentive Vouchers,Large,Programme Expenditure
UK Statistics Family,Office for National Statistics,30/03/2022,Exp - Purchase Of Goods/Services - IT Contractual Services,CLOUD ARCHITECTURE,CTS (Cloud Technology Solutions Ltd),30003365," 80,797.80 ",Information Management Services,Large,Programme Expenditure
UK Statistics Family,Office for National Statistics,30/03/2022,"ICT Outsourcing, Maintenance And Support",IT Operations,Clearvision-Cm,30003366," 25,890.02 ",Software Licenses,SME,Programme Expenditure
UK Statistics Family,Office for National Statistics,30/03/2022,Hosting,IT Operations,Clearvision-Cm,30003366," 51,997.02 ",Software Licenses,SME,Programme Expenditure
UK Statistics Family,Office for National Statistics,30/03/2022,"ICT Outsourcing, Maintenance And Support",IT Operations,Computacenter (Uk) Limited,30003367," 217,682.47 ",Software Licenses,Large,Programme Expenditure
UK Statistics Family,Office for National Statistics,30/03/2022,Travel And Subsistence,Corporate Centre,Corporate Travel Management ,30003369," 35,572.52 ",Travel and Accommodation,SME,Programme Expenditure
UK Statistics Family,Office for National Statistics,30/03/2022,Telecoms,IT Operations,Freedom Communications (UK) Ltd,30003370," 30,672.40 ",Telecommunications,Large,Programme Expenditure
UK Statistics Family,Office for National Statistics,30/03/2022,Exp - Purchase Of Goods/Services - IT Contractual Services,Tech Delivery Data As A Platform,Insight Direct,30003372," 34,045.68 ",Information Management Services,Large,Programme Expenditure
UK Statistics Family,Office for National Statistics,30/03/2022,Software Licences At Cost - Additions,Digital Publishing,Insight Direct,30003373," 316,222.94 ",Software Licenses,Large,Programme Expenditure
UK Statistics Family,Office for National Statistics,30/03/2022,Specialist User Software And Hardware,Digital Publishing,Insight Direct,30003373," 5,216.82 ",Software Licenses,Large,Programme Expenditure
UK Statistics Family,Office for National Statistics,30/03/2022,Software Licences At Cost - Additions,Digital Publishing,Insight Direct,30003374," 161,774.18 ",Software Licenses,Large,Programme Expenditure
UK Statistics Family,Office for National Statistics,30/03/2022,Surveys,Crime Income And Wealth,Natcen Social Research,30003375," 69,430.80 ",Statistical Services,Large,Programme Expenditure
UK Statistics Family,Office for National Statistics,30/03/2022,Purchase of Goods and Services - Training,Data Science Campus,The Alan Turing Institute,30003377," 26,808.77 ",Collaborative Research,SME,Programme Expenditure
UK Statistics Family,Office for National Statistics,30/03/2022,Exp - Purchase Of Goods And Services Consultants,2023 CENSUS DATA TRANSFORMATION,The Sensible Code Company,30003378," 123,442.80 ",Consultancy,SME,Programme Expenditure
UK Statistics Family,Office for National Statistics,30/03/2022,Buildings Under Construction,Property Newport,Vinci Construction UK Limited,30003379," 96,560.89 ",Facilities Mangement Services,Large,Programme Expenditure
UK Statistics Family,Office for National Statistics,30/03/2022,Telecoms,Tech Delivery Next Gen IT And Infrastructure,Freedom Communications (UK) Ltd,30003380," 2,825.71 ",Telecommunications,Large,Programme Expenditure
UK Statistics Family,Office for National Statistics,30/03/2022,Telecoms,IT Operations,Freedom Communications (UK) Ltd,30003380," 28,783.95 ",Telecommunications,Large,Programme Expenditure
UK Statistics Family,Office for National Statistics,31/03/2022,Telecoms,IT Operations,Bt Global Services,30003385," 31,625.40 ",Telecommunications,Large,Programme Expenditure
UK Statistics Family,Office for National Statistics,31/03/2022,Exp - Seconded UK Staff - Basic Salary,FAST STREAM RECHARGES - CABINET OFFICE,Cabinet Office,30003386," 143,814.00 ",Fast Stream Services,Large,Programme Expenditure
UK Statistics Family,Office for National Statistics,31/03/2022,Training & Development,FAST STREAM RECHARGES - CABINET OFFICE,Cabinet Office,30003386," 52,800.00 ",Fast Stream Services,Large,Programme Expenditure
UK Statistics Family,Office for National Statistics,31/03/2022,Exp - Purchase Of Goods And Services Consultants,Sustainability And Inequalities,Centre for Ecology & Hydrology (UKRI),30003387," 98,079.00 ",Consultancy,SME,Programme Expenditure
UK Statistics Family,Office for National Statistics,31/03/2022,Exp - Purchase Of Goods/Services - Training & Development - Professional Membership Fees,Sustainability And Inequalities,Centre for Ecology & Hydrology (UKRI),30003387," 1,500.00 ",Consultancy,SME,Programme Expenditure
UK Statistics Family,Office for National Statistics,31/03/2022,Hosting,IT Operations,Crown Hosting Data Centres Limited,30003388," 57,125.40 ",Information Management Services,SME,Programme Expenditure
UK Statistics Family,Office for National Statistics,31/03/2022,Exp - Purchase Of Goods And Services Consultants,Property Services,Faithful+Gould,30003390," 13,645.93 ",Consultancy,SME,Programme Expenditure
UK Statistics Family,Office for National Statistics,31/03/2022,Security Fixed Fee,Property Services,Faithful+Gould,30003390," 4,933.26 ",Consultancy,SME,Programme Expenditure
UK Statistics Family,Office for National Statistics,31/03/2022,Exp - Purchase Of Goods And Services Consultants,Property Newport,Faithful+Gould,30003390," 20,280.00 ",Consultancy,SME,Programme Expenditure
UK Statistics Family,Office for National Statistics,31/03/2022,Fixtures & Fittings At Cost - Additions,Property Newport,Gresham Office Furniture Limited,30003391," 31,977.00 ",Office Furniture,SME,Programme Expenditure
UK Statistics Family,Office for National Statistics,31/03/2022,Fixtures & Fittings At Cost - Additions,Property Titchfield,Gresham Office Furniture Limited,30003391," 13,348.80 ",Office Furniture,SME,Programme Expenditure
UK Statistics Family,Office for National Statistics,31/03/2022,Other Goods And Services,People Solutions,Home Office,30003392," 44,340.89 ",Consultancy,Large,Programme Expenditure
UK Statistics Family,Office for National Statistics,31/03/2022,Exp - Purchase Of Goods/Services - IT Contractual Services,Tech Delivery Data As A Platform,Insight Direct,30003393," 90,487.63 ",Information Management Services,Large,Programme Expenditure
UK Statistics Family,Office for National Statistics,31/03/2022,Exp - Purchase Of Goods/Services - Contractors,IT Operations,Insight Direct,30003393," 8,287.68 ",Information Management Services,Large,Programme Expenditure
UK Statistics Family,Office for National Statistics,31/03/2022,Exp - Purchase Of Goods/Services - Training & Development - Seminar & Conference Fees,Best Practice And Impact,KPMG LLP,30003394," 5,281.80 ",Training and Educational Services,SME,Programme Expenditure
UK Statistics Family,Office for National Statistics,31/03/2022,Software Licences At Cost - Additions,Data Science Campus,KPMG LLP,30003394," 100,500.00 ",Training and Educational Services,SME,Programme Expenditure
UK Statistics Family,Office for National Statistics,31/03/2022,Training & Development,Data As A Service,KPMG LLP,30003394," 1,246.25 ",Training and Educational Services,SME,Programme Expenditure
UK Statistics Family,Office for National Statistics,31/03/2022,Training & Development,Data As A Service,KPMG LLP,30003394," 13,708.75 ",Training and Educational Services,SME,Programme Expenditure
UK Statistics Family,Office for National Statistics,31/03/2022,Fixtures & Fittings At Cost - Additions,Property Services,LOGOVISUAL,30003395," 37,383.60 ",Property Maintenance,SME,Programme Expenditure
UK Statistics Family,Office for National Statistics,31/03/2022,Accommodation & Building Management,Interview Management IPS,London Borough of Hillingdon,30003396," 34,930.00 ",Property Rates,Large,Programme Expenditure
UK Statistics Family,Office for National Statistics,31/03/2022,EXP - PURCHASE OF GOODS/SERVICES -  NON IT CONTRACTUAL PAYMENTS,Analysis Microdata And Engagement,Ministry of Defence,30003397," 28,550.22 ",Seconded Staff,Large,Programme Expenditure
UK Statistics Family,Office for National Statistics,31/03/2022,Fixtures & Fittings At Cost - Additions,Property Newport,Orange box Limited,30003398," 36,531.48 ",Office Furniture,SME,Programme Expenditure
UK Statistics Family,Office for National Statistics,31/03/2022,Fixtures & Fittings At Cost - Additions,Property Titchfield,Orange box Limited,30003398," 137,890.39 ",Office Furniture,SME,Programme Expenditure
UK Statistics Family,Office for National Statistics,31/03/2022,Purchase of Goods and Services - Training,Productivity Research And Professional Development,Queen Mary University of London,30003399," 30,000.00 ",Training and Educational Services,SME,Programme Expenditure
UK Statistics Family,Office for National Statistics,31/03/2022,Exp - Purchase Of Goods And Services Consultants,Policy and Design,RSM Risk Assurance Services LLP,30003400," 71,993.60 ",Consultancy,SME,Programme Expenditure
UK Statistics Family,Office for National Statistics,31/03/2022,Exp - Short-Term Contract & Agency Staff - Full Cost,Learning And Capability,SmartSourcing Ltd,30003401," 3,895.20 ",Information Management Services,SME,Programme Expenditure
UK Statistics Family,Office for National Statistics,31/03/2022,Exp - Short-Term Contract & Agency Staff - Full Cost,INTEGRATED DATA STRATEGY AND DELIVERY,SmartSourcing Ltd,30003401," 5,328.00 ",Information Management Services,SME,Programme Expenditure
UK Statistics Family,Office for National Statistics,31/03/2022,Exp - Purchase Of Goods/Services - Contractors,BUSINESS STRATEGY PERFORMANCE AND PMO,SmartSourcing Ltd,30003401," 5,814.48 ",Information Management Services,SME,Programme Expenditure
UK Statistics Family,Office for National Statistics,31/03/2022,Exp - Purchase Of Goods/Services - Contractors,CDIO UNGP,SmartSourcing Ltd,30003401," 3,746.16 ",Information Management Services,SME,Programme Expenditure
UK Statistics Family,Office for National Statistics,31/03/2022,Exp - Purchase Of Goods/Services - Contractors,Tech Delivery Data As A Platform,SmartSourcing Ltd,30003401," 3,600.00 ",Information Management Services,SME,Programme Expenditure
UK Statistics Family,Office for National Statistics,31/03/2022,Exp - Purchase Of Goods/Services - Contractors,Tech Delivery Next Gen IT And Infrastructure,SmartSourcing Ltd,30003401," 14,805.41 ",Information Management Services,SME,Programme Expenditure
UK Statistics Family,Office for National Statistics,31/03/2022,Exp - Purchase Of Goods/Services - Contractors,IT Operations,SmartSourcing Ltd,30003401," 40,157.76 ",Information Management Services,SME,Programme Expenditure
UK Statistics Family,Office for National Statistics,31/03/2022,Exp - Purchase Of Goods/Services - Contractors,Digital Delivery,SmartSourcing Ltd,30003401," 13,184.64 ",Information Management Services,SME,Programme Expenditure
UK Statistics Family,Office for National Statistics,31/03/2022,Exp - Purchase Of Goods/Services - Contractors,Data Science Campus,SmartSourcing Ltd,30003401," 28,323.12 ",Information Management Services,SME,Programme Expenditure
UK Statistics Family,Office for National Statistics,31/03/2022,Exp - Short-Term Contract & Agency Staff - Full Cost,Best Practice And Impact,Talent International,30003403," 5,403.48 ",Information Management Services,SME,Programme Expenditure
UK Statistics Family,Office for National Statistics,31/03/2022,Exp - Short-Term Contract & Agency Staff - Full Cost,Data Architecture,Talent International,30003403, 752.14 ,Information Management Services,SME,Programme Expenditure
UK Statistics Family,Office for National Statistics,31/03/2022,Exp - Purchase Of Goods/Services - Contractors,Tech Delivery Next Gen IT And Infrastructure,Talent International,30003403," 3,000.00 ",Information Management Services,SME,Programme Expenditure
UK Statistics Family,Office for National Statistics,31/03/2022,Exp - Purchase Of Goods/Services - Contractors,Data Science Campus,Talent International,30003403," 25,200.00 ",Information Management Services,SME,Programme Expenditure
UK Statistics Family,Office for National Statistics,31/03/2022,Exp - Purchase Of Goods/Services - Incentive Payments,Covid Infection Survey,Sodexo Motivation Solutions U.K. ltd,30003404," 1,844,288.29 ",Survey Response Incentive Vouchers,Large,Programme Expenditure
UK Statistics Family,Office for National Statistics,31/03/2022,FM Contract Payments,Vinci Payments,Vinci Construction UK Limited,30003405," 341,063.48 ",Facilities Mangement Services,Large,Programme Expenditure
,,,,,,,"52,855,444.00",,,
